Workbook

Sheet Running Totals

Sheet Donation Averages

Sheet Income Source Analytics

Sheet Donations by Class
A41: Row Labels | B41: Count of donate_id | C41: Sum of donate_amount | D41: Average of donate_amount2
A42: 1948 | B42: 1 | C42: 100 | D42: 100
A43: 1950 | B43: 1 | C43: 50 | D43: 50
A44: 1951 | B44: 4 | C44: 350 | D44: 87.5
A45: 1952 | B45: 1 | C45: 100 | D45: 100
A46: 1955 | B46: 4 | C46: 214.52 | D46: 53.63
A47: 1956 | B47: 17 | C47: 360 | D47: 21.17647059
A48: 1957 | B48: 8 | C48: 837 | D48: 104.625
A49: 1958 | B49: 20 | C49: 1283.58 | D49: 64.179
A50: 1959 | B50: 8 | C50: 1750 | D50: 218.75
A51: 1960 | B51: 10 | C51: 825 | D51: 82.5
A52: 1962 | B52: 2 | C52: 150 | D52: 75
A53: 1963 | B53: 11 | C53: 423.89 | D53: 38.53545455
A54: 1964 | B54: 96 | C54: 10088.92 | D54: 105.0929167
A55: 1965 | B55: 9 | C55: 500 | D55: 55.55555556
A56: 1966 | B56: 57 | C56: 5138 | D56: 90.14035088
A57: 1967 | B57: 2 | C57: 1050 | D57: 525
A58: 1968 | B58: 26 | C58: 2890 | D58: 111.1538462
A59: 1969 | B59: 22 | C59: 1503.69 | D59: 68.34954545
A60: 1972 | B60: 2 | C60: 200 | D60: 100
A61: 1973 | B61: 1 | C61: 100 | D61: 100
A62: 1974 | B62: 1 | C62: 197.8 | D62: 197.8
A63: 1975 | B63: 12 | C63: 725 | D63: 60.41666667
A64: 1976 | B64: 3 | C64: 1125 | D64: 375
A65: 1977 | B65: 16 | C65: 950.85 | D65: 59.428125
A66: 1978 | B66: 33 | C66: 1841 | D66: 55.78787879
A67: 1979 | B67: 43 | C67: 2690.81 | D67: 62.57697674
A68: 1980 | B68: 10 | C68: 369.6 | D68: 36.96
A69: 1981 | B69: 6 | C69: 60 | D69: 10
A70: 1982 | B70: 1 | C70: 200 | D70: 200
A71: 1984 | B71: 1 | C71: 50 | D71: 50
A72: 1985 | B72: 9 | C72: 341 | D72: 37.88888889
A73: 1986 | B73: 10 | C73: 356 | D73: 35.6
A74: 1987 | B74: 8 | C74: 210 | D74: 26.25
A75: 1989 | B75: 8 | C75: 1133.57 | D75: 141.69625
A76: 1992 | B76: 1 | C76: 100 | D76: 100
A77: 1996 | B77: 2 | C77: 140 | D77: 70
A78: 2004 | B78: 1 | C78: 50 | D78: 50
A79: 2007 | B79: 6 | C79: 60 | D79: 10
A80: 2008 | B80: 1 | C80: 40 | D80: 40
A81: 2009 | B81: 6 | C81: 120.54 | D81: 20.09
A82: 2011 | B82: 1 | C82: 25 | D82: 25
A83: 2012 | B83: 3 | C83: 175 | D83: 58.33333333
A84: 2013 | B84: 1 | C84: 75 | D84: 75
A85: 2015 | B85: 3 | C85: 175 | D85: 58.33333333
A86: 2016 | B86: 3 | C86: 125 | D86: 41.66666667
A87: 2018 | B87: 1 | C87: 500 | D87: 500
A88: 2021 | B88: 1 | C88: 500 | D88: 500
A89: (blank) | B89: 3 | C89: 191 | D89: 63.66666667
A90: Grand Total | B90: 496 | C90: 40441.77 | D90: 81.53582661

Sheet Fund Drive Budget History
A1: 8 | B1: Fall 2000 | C1: 68617
A2: 9 | B2: Spring 2001 | C2: 102827
A3: 10 | B3: Fall 2001 | C3: 95623
A4: 11 | B4: Spring 2002 | C4: 111701
A5: 12 | B5: Fall 2002 | C5: 106844
A6: 13 | B6: Spring 2003 | C6: 102871
A7: 14 | B7: Fall 2003 | C7: 98477
A8: 15 | B8: Spring 2004 | C8: 108900
A9: 16 | B9: Fall 2004 | C9: 113124
A10: 17 | B10: Spring 2005 | C10: 118619
A11: 18 | B11: Fall 2005 | C11: 111051
A12: 19 | B12: Spring 2006 | C12: 113413
A13: 20 | B13: Fall 2006 | C13: 95079
A14: 21 | B14: Spring 2007 | C14: 103994
A15: 22 | B15: Fall 2007 | C15: 116556
A16: 23 | B16: Spring 2008 | C16: 107504
A17: 24 | B17: Fall 2008 | C17: 108019
A18: 25 | B18: Spring 2009 | C18: 113444
A19: 26 | B19: Fall 2009 | C19: 109229
A20: 27 | B20: Spring 2010 | C20: 98094
A21: 28 | B21: Fall 2010 | C21: 96500
A22: 29 | B22: Spring 2011 | C22: 104010
A23: 30 | B23: Fall 2011 | C23: 98593
A24: 31 | B24: Spring 2012 | C24: 104884
A25: 32 | B25: Fall 2012 | C25: 117343
A26: 33 | B26: Spring 2013 | C26: 104622
A27: 34 | B27: Fall 2013 | C27: 97167
A28: 35 | B28: Spring 2014 | C28: 99462
A29: 36 | B29: Fall 2014 | C29: 98667
A30: 37 | B30: Spring 2015 | C30: 101357
A31: 38 | B31: Fall 2015 | C31: 99590
A32: 39 | B32: Spring 2016 | C32: 89448
A33: 40 | B33: Fall 2016 | C33: 95352
A34: 41 | B34: Spring 2017 | C34: 96226
A35: 42 | B35: Fall 2017 | C35: 92344
A36: 43 | B36: Spring 2018 | C36: 96226
A37: 44 | B37: Fall 2018 | C37: 74104
A38: 45 | B38: Spring 2019 | C38: 74493
A39: 46 | B39: Fall 2019 | C39: 75511.82
A40: 47 | B40: Spring 2020 | C40: 65854
A41: 48 | B41: Fall 2020 | C41: 45171.65
A42: 49 | B42: Spring 2021 | C42: 59014
A43: 50 | B43: Fall 2021 | C43: 52095
A44: 51 | B44: Spring 2022 | C44: 54096
A45: 52 | B45: Fall 2022 | C45: 51670
A46: 53 | B46: Spring 2023 | C46: 50252
A47: 54 | B47: Fall 2023 | C47: 48752
A48: 55 | B48: Spring 2024 | C48: 39822
A49: 56 | B49: Fall 2024 | C49: 40465
A50: 57 | B50: Spring 2025 | C50: 40092

Sheet Tables
A1: FD57 | AP1: FD 56 | CE1: FD 55 | DT1: FD 54 | FI1: FD 53
A2: Day | B2: Date | C2: Goal | D2: Matching Grant # | E2: Matching Grant Amt | F2: Cash # | G2: Cash Amt | H2: Credit Card # | I2: Credit Card Amt | J2: PayPal # | K2: PayPal Amt | L2: Check # | M2: Check Amt | N2: Operating Budget | O2: Donations by Day | P2: Total Donations | Q2: Avg Overall Donation Amt | R2: Avg Donation/Day | S2: Average Donated Daily | T2: Daily % of Goal | U2: Daily % Matching $ | V2: Daily % Matching # | W2: Overall %Matching $ | X2: Overall % Matching # | Y2: Daily % Cash $ | Z2: Daily % Cash # | AA2: Overall % Cash $ | AB2: Overall % Cash # | AC2: Daily % CC $ | AD2: Daily % CC # | AE2: Overall % CC $ | AF2: Overall % CC # | AG2: Daily % PP $ | AH2: Daily % PP # | AI2: Overall % PP $ | AJ2: Overall % PP # | AK2: Daily % Chk $ | AL2: Daily % Chk # | AM2: Overall % Chk $ | AN2: Overall % Chk # | AP2: Day | AQ2: Date | AR2: Goal | AS2: Matching Grant # | AT2: Matching Grant Amt | AU2: Cash # | AV2: Cash Amt | AW2: Credit Card # | AX2: Credit Card Amt | AY2: PayPal # | AZ2: PayPal Amt | BA2: Check # | BB2: Check Amt | BC2: Operating Budget | BD2: Donations by Day | BE2: Total Donations | BF2: Avg Overall Donation Amt | BG2: Avg Donation/Day | BH2: Average Donated Daily | BI2: Daily % of Goal | BJ2: Daily % Matching $ | BK2: Daily % Matching # | BL2: Overall %Matching $ | BM2: Overall % Matching # | BN2: Daily % Cash $ | BO2: Daily % Cash # | BP2: Overall % Cash $ | BQ2: Overall % Cash # | BR2: Daily % CC $ | BS2: Daily % CC # | BT2: Overall % CC $ | BU2: Overall % CC # | BV2: Daily % PP $ | BW2: Daily % PP # | BX2: Overall % PP $ | BY2: Overall % PP # | BZ2: Daily % Chk $ | CA2: Daily % Chk # | CB2: Overall % Chk $ | CC2: Overall % Chk # | CE2: Day | CF2: Date | CG2: Goal | CH2: Matching Grant # | CI2: Matching Grant Amt | CJ2: Cash # | CK2: Cash Amt | CL2: Credit Card # | CM2: Credit Card Amt | CN2: PayPal # | CO2: PayPal Amt | CP2: Check # | CQ2: Check Amt | CR2: Operating Budget | CS2: Donations by Day | CT2: Total Donations | CU2: Avg Overall Donation Amt | CV2: Avg Donation/Day | CW2: Average Donated Daily | CX2: Daily % of Goal | CY2: Daily % Matching $ | CZ2: Daily % Matching # | DA2: Overall %Matching $ | DB2: Overall % Matching # | DC2: Daily % Cash $ | DD2: Daily % Cash # | DE2: Overall % Cash $ | DF2: Overall % Cash # | DG2: Daily % CC $ | DH2: Daily % CC # | DI2: Overall % CC $ | DJ2: Overall % CC # | DK2: Daily % PP $ | DL2: Daily % PP # | DM2: Overall % PP $ | DN2: Overall % PP # | DO2: Daily % Chk $ | DP2: Daily % Chk # | DQ2: Overall % Chk $ | DR2: Overall % Chk # | DT2: Day | DU2: Date | DV2: Goal | DW2: Matching Grant # | DX2: Matching Grant Amt | DY2: Cash # | DZ2: Cash Amt | EA2: Credit Card # | EB2: Credit Card Amt | EC2: PayPal # | ED2: PayPal Amt | EE2: Check # | EF2: Check Amt | EG2: Operating Budget | EH2: Donations by Day | EI2: Total Donations | EJ2: Avg Overall Donation Amt | EK2: Avg Donation/Day | EL2: Average Donated Daily | EM2: Daily % of Goal | EN2: Daily % Matching $ | EO2: Daily % Matching # | EP2: Overall %Matching $ | EQ2: Overall % Matching # | ER2: Daily % Cash $ | ES2: Daily % Cash # | ET2: Overall % Cash $ | EU2: Overall % Cash # | EV2: Daily % CC $ | EW2: Daily % CC # | EX2: Overall % CC $ | EY2: Overall % CC # | EZ2: Daily % PP $ | FA2: Daily % PP # | FB2: Overall % PP $ | FC2: Overall % PP # | FD2: Daily % Chk $ | FE2: Daily % Chk # | FF2: Overall % Chk $ | FG2: Overall % Chk # | FI2: Day | FJ2: Date | FK2: Goal | FL2: Matching Grant # | FM2: Matching Grant Amt | FN2: Cash # | FO2: Cash Amt | FP2: Credit Card # | FQ2: Credit Card Amt | FR2: PayPal # | FS2: PayPal Amt | FT2: Check # | FU2: Check Amt | FV2: Operating Budget | FW2: Donations by Day | FX2: Total Donations | FY2: Avg Overall Donation Amt | FZ2: Avg Donation/Day | GA2: Average Donated Daily | GB2: Daily % of Goal | GC2: Daily % Matching $ | GD2: Daily % Matching # | GE2: Overall %Matching $ | GF2: Overall % Matching # | GG2: Daily % Cash $ | GH2: Daily % Cash # | GI2: Overall % Cash $ | GJ2: Overall % Cash # | GK2: Daily % CC $ | GL2: Daily % CC # | GM2: Overall % CC $ | GN2: Overall % CC # | GO2: Daily % PP $ | GP2: Daily % PP # | GQ2: Overall % PP $ | GR2: Overall % PP # | GS2: Daily % Chk $ | GT2: Daily % Chk # | GU2: Overall % Chk $ | GV2: Overall % Chk #
A3: Pre-Fund Drive | C3: 40092 | D3: =COUNTIFS('Sanitized Raw Data'!$H:$H,"<"&B4,'Sanitized Raw Data'!$D:$D,"Matching Grant") -> 0 | E3: =SUMIFS('Sanitized Raw Data'!$C:$C,'Sanitized Raw Data'!$H:$H,"<"&B4,'Sanitized Raw Data'!$D:$D,"Matching Grant") -> 0 | F3: =COUNTIFS('Sanitized Raw Data'!$H:$H,"<"&B4,'Sanitized Raw Data'!$D:$D,"Cash") -> 0 | G3: =SUMIFS('Sanitized Raw Data'!$C:$C,'Sanitized Raw Data'!$H:$H,"<"&B4,'Sanitized Raw Data'!$D:$D,"Cash") -> 0 | H3: =COUNTIFS('Sanitized Raw Data'!$H:$H,"<"&B4,'Sanitized Raw Data'!$D:$D,"CC") -> 0 | I3: =SUMIFS('Sanitized Raw Data'!$C:$C,'Sanitized Raw Data'!$H:$H,"<"&B4,'Sanitized Raw Data'!$D:$D,"CC") -> 0 | J3: =COUNTIFS('Sanitized Raw Data'!$H:$H,"<"&B4,'Sanitized Raw Data'!$D:$D,"PayPal") -> 64 | K3: =SUMIFS('Sanitized Raw Data'!$C:$C,'Sanitized Raw Data'!$H:$H,"<"&B4,'Sanitized Raw Data'!$D:$D,"PayPal") -> 3196.54 | L3: =COUNTIFS('Sanitized Raw Data'!$H:$H,"<"&B4,'Sanitized Raw Data'!$D:$D,"Personal Check")+COUNTIFS('Sanitized Raw Data'!$H:$H,"<"&B4,'Sanitized Raw Data'!$D:$D,"ACH Grant Deposit") -> 33 | M3: =SUMIFS('Sanitized Raw Data'!$C:$C,'Sanitized Raw Data'!$H:$H,"<"&B4,'Sanitized Raw Data'!$D:$D,"Personal Check")+SUMIFS('Sanitized Raw Data'!$C:$C,'Sanitized Raw Data'!$H:$H,"<"&B4,'Sanitized Raw Data'!$D:$D,"ACH Grant Deposit") -> 5016.1 | N3: =SUM(G3,M3,K3,I3,E3) -> 8212.64 | O3: =SUM(F3,H3,J3,L3) -> 97 | P3: =SUM(F3,L3,J3,H3,D3) -> 97 | Q3: =N3/P3 -> 84.66639175 | R3: =(SUM(G3,M3,K3,I3,E3))/(SUM(F3,H3,J3,L3,D3)) -> 84.66639175 | T3: =(N3/C$3) -> 0.2048448568 | U3: =E3/N3 -> 0 | V3: =D3/O3 -> 0 | W3: =E3/N3 -> 0 | X3: =D3/O3 -> 0 | Y3: =G3/N3 -> 0 | Z3: =F3/O3 -> 0 | AA3: =B3/J3 -> 0 | AB3: =F3/O3 -> 0 | AC3: =I3/N3 -> 0 | AD3: =H3/O3 -> 0 | AE3: =H3/N3 -> 0 | AF3: =H3/P3 -> 0 | AG3: =K3/N3 -> 0.3892219798 | AH3: =J3/O3 -> 0.6597938144 | AI3: =K3/N3 -> 0.3892219798 | AJ3: =J3/P3 -> 0.6597938144 | AK3: =M3/N3 -> 0.6107780202 | AL3: =L3/O3 -> 0.3402061856 | AM3: =M3/N3 -> 0.6107780202 | AN3: =L3/P3 -> 0.3402061856 | AP3: Pre-Fund Drive | AR3: 40465 | AS3: 0 | AT3: 0 | AU3: 0 | AV3: 0 | AW3: 0 | AX3: 0 | AY3: 59 | AZ3: 802.54 | BA3: 41 | BB3: 3337.58 | BC3: 4140.12 | BD3: 100 | BE3: 100 | BF3: 41.4012 | BG3: 41.4012 | BI3: 0.1023136043 | BJ3: 0 | BK3: 0 | BL3: 0 | BM3: 0 | BN3: 0 | BO3: 0 | BP3: 0 | BQ3: 0 | BR3: 0 | BS3: 0 | BT3: 0 | BU3: 0 | BV3: 0.1938446229 | BW3: 0.59 | BX3: 0.1938446229 | BY3: 0.59 | BZ3: 0.8061553771 | CA3: 0.41 | CB3: 0.8061553771 | CC3: 0.41 | CE3: Pre-Fund Drive | CG3: 39822 | CH3: 0 | CI3: 0 | CJ3: 0 | CK3: 0 | CL3: 0 | CM3: 0 | CN3: 78 | CO3: 1229.54 | CP3: 41 | CQ3: 5576.58 | CR3: 6806.12 | CS3: 119 | CT3: 119 | CU3: 57.19428571 | CV3: 57.19428571 | CX3: 0.1709135654 | CY3: 0 | CZ3: 0 | DA3: 0 | DB3: 0 | DC3: 0 | DD3: 0 | DE3: 0 | DF3: 0 | DG3: 0 | DH3: 0 | DI3: 0 | DJ3: 0 | DK3: 0.180652119 | DL3: 0.6554621849 | DM3: 0.180652119 | DN3: 0.6554621849 | DO3: 0.819347881 | DP3: 0.3445378151 | DQ3: 0.819347881 | DR3: 0.3445378151 | DT3: Pre-Fund Drive | DV3: 48752 | DW3: 1 | DX3: 50 | DY3: 0 | DZ3: 0 | EA3: 1 | EB3: 19.63 | EC3: 96 | ED3: 2408.13 | EE3: 36 | EF3: 3986.01 | EG3: 6463.77 | EH3: 133 | EI3: 134 | EJ3: 48.23708955 | EK3: 48.23708955 | EM3: 0.1325847145 | EN3: 0.007735423754 | EO3: 0.007518796992 | EP3: 0.007735423754 | EQ3: 0.007518796992 | ER3: 0 | ES3: 0 | ET3: 0 | EU3: 0 | EV3: 0.003036927366 | EW3: 0.007518796992 | EX3: 0.0001547084751 | EY3: 0.007462686567 | EZ3: 0.3725581201 | FA3: 0.7218045113 | FB3: 0.3725581201 | FC3: 0.7164179104 | FD3: 0.6166695288 | FE3: 0.2706766917 | FF3: 0.6166695288 | FG3: 0.2686567164 | FI3: Pre-Fund Drive | FK3: 50252 | FL3: 3 | FM3: 250 | FN3: 0 | FO3: 0 | FP3: 0 | FQ3: 0 | FR3: 67 | FS3: 1235.33 | FT3: 33 | FU3: 2932.45 | FV3: 4417.78 | FW3: 100 | FX3: 103 | FY3: 42.89106796 | FZ3: 42.89106796 | GB3: 0.08791252089 | GC3: 0.05658950876 | GD3: 0.03 | GE3: 0.05658950876 | GF3: 0.03 | GG3: 0 | GH3: 0 | GI3: 0 | GJ3: 0 | GK3: 0 | GL3: 0 | GM3: 0 | GN3: 0 | GO3: 0.2796268714 | GP3: 0.67 | GQ3: 0.2796268714 | GR3: 0.6504854369 | GS3: 0.6637836198 | GT3: 0.33 | GU3: 0.6637836198 | GV3: 0.3203883495
A4: Day 1 | B4: 2025-04-07 | C4: 40092 | D4: =COUNTIFS('Sanitized Raw Data'!$H:$H,">="&$B4,'Sanitized Raw Data'!$H:$H,"<"&$B5,'Sanitized Raw Data'!$D:$D,"Matching Grant") -> 0 | E4: =SUMIFS('Sanitized Raw Data'!$C:$C,'Sanitized Raw Data'!$H:$H,">="&$B4,'Sanitized Raw Data'!$H:$H,"<"&$B5,'Sanitized Raw Data'!$D:$D,"Matching Grant") -> 0 | F4: =COUNTIFS('Sanitized Raw Data'!$H:$H,">="&$B4,'Sanitized Raw Data'!$H:$H,"<"&$B5,'Sanitized Raw Data'!$D:$D,"Cash") -> 0 | G4: =SUMIFS('Sanitized Raw Data'!$C:$C,'Sanitized Raw Data'!$H:$H,">="&$B4,'Sanitized Raw Data'!$H:$H,"<"&$B5,'Sanitized Raw Data'!$D:$D,"Cash") -> 0 | H4: =COUNTIFS('Sanitized Raw Data'!$H:$H,">="&$B4,'Sanitized Raw Data'!$H:$H,"<"&$B5,'Sanitized Raw Data'!$D:$D,"CC") -> 9 | I4: =SUMIFS('Sanitized Raw Data'!$C:$C,'Sanitized Raw Data'!$H:$H,">="&$B4,'Sanitized Raw Data'!$H:$H,"<"&$B5,'Sanitized Raw Data'!$D:$D,"CC") -> 1205 | J4: =COUNTIFS('Sanitized Raw Data'!$H:$H,">="&$B4,'Sanitized Raw Data'!$H:$H,"<"&$B5,'Sanitized Raw Data'!$D:$D,"PayPal") -> 3 | K4: =SUMIFS('Sanitized Raw Data'!$C:$C,'Sanitized Raw Data'!$H:$H,">="&$B4,'Sanitized Raw Data'!$H:$H,"<"&$B5,'Sanitized Raw Data'!$D:$D,"PayPal") -> 159.89 | L4: =COUNTIFS('Sanitized Raw Data'!$H:$H,">="&$B4,'Sanitized Raw Data'!$H:$H,"<"&$B5,'Sanitized Raw Data'!$D:$D,"Personal Check")+COUNTIFS('Sanitized Raw Data'!$H:$H,">="&$B4,'Sanitized Raw Data'!$H:$H,"<"&$B5,'Sanitized Raw Data'!$D:$D,"ACH Grant Deposit") -> 0 | M4: =SUMIFS('Sanitized Raw Data'!$C:$C,'Sanitized Raw Data'!$H:$H,">="&$B4,'Sanitized Raw Data'!$H:$H,"<"&$B5,'Sanitized Raw Data'!$D:$D,"Personal Check")+SUMIFS('Sanitized Raw Data'!$C:$C,'Sanitized Raw Data'!$H:$H,">="&$B4,'Sanitized Raw Data'!$H:$H,"<"&$B5,'Sanitized Raw Data'!$D:$D,"ACH Grant Deposit") -> 0 | N4: =SUM(G4,M4,K4,I4,N3,E4) -> 9577.53 | O4: =SUM(F4,H4,J4,L4,D4) -> 12 | P4: =SUM(F4,L4,J4,H4,P3,D4) -> 109 | Q4: =N4/P4 -> 87.86724771 | R4: 113.7408333 | S4: =N4/Sheet11!$A1 -> 9577.53 | T4: =(N4-N3)/C$3 -> 0.03404394892 | U4: =E4/(N4-N3) -> 0 | V4: 0 | W4: =SUM(E$3:E4)/N4 -> 0 | X4: =SUM(D$3:D4)/O4 -> 0 | Y4: =G4/(N4-N3) -> 0 | Z4: 0 | AA4: =SUM(G$3:G4)/N4 -> 0 | AB4: =SUM(F$3:F4)/O4 -> 0 | AC4: =I4/(N4-N3) -> 0.8828550286 | AD4: =H4/O4 -> 0.75 | AE4: =SUM(I$3:I4)/N4 -> 0.1258153198 | AF4: =SUM(H$3:H4)/P4 -> 0.08256880734 | AG4: =K4/(N4-N3) -> 0.1171449714 | AH4: =J4/O4 -> 0.25 | AI4: =SUM(K$3:K4)/N4 -> 0.3504483933 | AJ4: =SUM(J$3:J4)/P4 -> 0.6146788991 | AK4: =M4/(N4-N3) -> 0 | AL4: =L4/O4 -> 0 | AM4: =SUM(M$3:M4)/N4 -> 0.5237362869 | AN4: =SUM(L$3:L4)/P4 -> 0.3027522936 | AP4: Day 1 | AQ4: 2024-10-07 | AR4: 40465 | AS4: 0 | AT4: 0 | AU4: 0 | AV4: 0 | AW4: 23 | AX4: 1909.17 | AY4: 5 | AZ4: 309.79 | BA4: 0 | BB4: 0 | BC4: 6359.08 | BD4: 28 | BE4: 128 | BF4: 49.6803125 | BG4: 79.24857143 | BH4: 6359.08 | BI4: 0.05483652539 | BJ4: 0 | BK4: 0 | BL4: 0 | BM4: 0 | BN4: 0 | BO4: 0 | BP4: 0 | BQ4: 0 | BR4: 0.8603895519 | BS4: 0.8214285714 | BT4: 0.3002273914 | BU4: 0.1796875 | BV4: 0.1396104481 | BW4: 0.1785714286 | BX4: 0.174919957 | BY4: 0.5 | BZ4: 0 | CA4: 0 | CB4: 0.5248526516 | CC4: 0.3203125 | CE4: Day 1 | CF4: 2024-04-16 | CG4: 39822 | CH4: 0 | CI4: 0 | CJ4: 0 | CK4: 0 | CL4: 174 | CM4: 13785.69 | CN4: 22 | CO4: 1416 | CP4: 8 | CQ4: 864.63 | CR4: 22872.44 | CS4: 204 | CT4: 323 | CU4: 70.81250774 | CV4: 78.75647059 | CW4: 22872.44 | CX4: 0.4034533675 | CY4: 0 | CZ4: 0 | DA4: 0 | DB4: 0 | DC4: 0 | DD4: 0 | DE4: 0 | DF4: 0 | DG4: 0.8580490118 | DH4: 0.8529411765 | DI4: 0.6027205668 | DJ4: 0.5386996904 | DK4: 0.08813468174 | DL4: 0.1078431373 | DM4: 0.1156649662 | DN4: 0.3095975232 | DO4: 0.05381630641 | DP4: 0.03921568627 | DQ4: 0.281614467 | DR4: 0.1517027864 | DT4: Day 1 | DU4: 2023-10-02 | DV4: 48752 | DW4: 0 | DX4: 0 | DY4: 0 | DZ4: 0 | EA4: 40 | EB4: 3194.78 | EC4: 10 | ED4: 559.47 | EE4: 3 | EF4: 639.79 | EG4: 10857.81 | EH4: 53 | EI4: 187 | EJ4: 58.06315508 | EK4: 82.90641509 | EL4: 10857.81 | EM4: 0.09013045619 | EN4: 0 | EO4: 0 | EP4: 0.004604980194 | EQ4: 0.01886792453 | ER4: 0 | ES4: 0 | ET4: 0 | EU4: 0 | EV4: 0.7270712146 | EW4: 0.7547169811 | EX4: 0.2960458877 | EY4: 0.2192513369 | EZ4: 0.1273247399 | FA4: 0.1886792453 | FB4: 0.2733147845 | FC4: 0.5668449198 | FD4: 0.1456040455 | FE4: 0.05660377358 | FF4: 0.4260343476 | FG4: 0.2085561497 | FI4: Day 1 | FJ4: 2023-04-11 | FK4: 50252 | FL4: 0 | FM4: 0 | FN4: 0 | FO4: 0 | FP4: 17 | FQ4: 1673.52 | FR4: 4 | FS4: 234 | FT4: 1 | FU4: 50 | FV4: 6375.3 | FW4: 22 | FX4: 125 | FY4: 51.0024 | FZ4: 88.97818182 | GA4: 6375.3 | GB4: 0.03895407148 | GC4: 0 | GD4: 0 | GE4: 0.03921384092 | GF4: 0.1363636364 | GG4: 0 | GH4: 0 | GI4: 0 | GJ4: 0 | GK4: 0.8549184683 | GL4: 0.7727272727 | GM4: 0.2625005882 | GN4: 0.136 | GO4: 0.1195390085 | GP4: 0.1818181818 | GQ4: 0.2304722915 | GR4: 0.568 | GS4: 0.02554252319 | GT4: 0.04545454545 | GU4: 0.4678132794 | GV4: 0.272
A5: Day 2 | B5: 2025-04-08 | C5: 40092 | D5: =COUNTIFS('Sanitized Raw Data'!$H:$H,">="&$B5,'Sanitized Raw Data'!$H:$H,"<"&$B6,'Sanitized Raw Data'!$D:$D,"Matching Grant") -> 0 | E5: =SUMIFS('Sanitized Raw Data'!$C:$C,'Sanitized Raw Data'!$H:$H,">="&$B5,'Sanitized Raw Data'!$H:$H,"<"&$B6,'Sanitized Raw Data'!$D:$D,"Matching Grant") -> 0 | F5: =COUNTIFS('Sanitized Raw Data'!$H:$H,">="&$B5,'Sanitized Raw Data'!$H:$H,"<"&$B6,'Sanitized Raw Data'!$D:$D,"Cash") -> 0 | G5: =SUMIFS('Sanitized Raw Data'!$C:$C,'Sanitized Raw Data'!$H:$H,">="&$B5,'Sanitized Raw Data'!$H:$H,"<"&$B6,'Sanitized Raw Data'!$D:$D,"Cash") -> 0 | H5: =COUNTIFS('Sanitized Raw Data'!$H:$H,">="&$B5,'Sanitized Raw Data'!$H:$H,"<"&$B6,'Sanitized Raw Data'!$D:$D,"CC") -> 143 | I5: =SUMIFS('Sanitized Raw Data'!$C:$C,'Sanitized Raw Data'!$H:$H,">="&$B5,'Sanitized Raw Data'!$H:$H,"<"&$B6,'Sanitized Raw Data'!$D:$D,"CC") -> 10875.62 | J5: =COUNTIFS('Sanitized Raw Data'!$H:$H,">="&$B5,'Sanitized Raw Data'!$H:$H,"<"&$B6,'Sanitized Raw Data'!$D:$D,"PayPal") -> 25 | K5: =SUMIFS('Sanitized Raw Data'!$C:$C,'Sanitized Raw Data'!$H:$H,">="&$B5,'Sanitized Raw Data'!$H:$H,"<"&$B6,'Sanitized Raw Data'!$D:$D,"PayPal") -> 1309.14 | L5: =COUNTIFS('Sanitized Raw Data'!$H:$H,">="&$B5,'Sanitized Raw Data'!$H:$H,"<"&$B6,'Sanitized Raw Data'!$D:$D,"Personal Check")+COUNTIFS('Sanitized Raw Data'!$H:$H,">="&$B5,'Sanitized Raw Data'!$H:$H,"<"&$B6,'Sanitized Raw Data'!$D:$D,"ACH Grant Deposit") -> 5 | M5: =SUMIFS('Sanitized Raw Data'!$C:$C,'Sanitized Raw Data'!$H:$H,">="&$B5,'Sanitized Raw Data'!$H:$H,"<"&$B6,'Sanitized Raw Data'!$D:$D,"Personal Check")+SUMIFS('Sanitized Raw Data'!$C:$C,'Sanitized Raw Data'!$H:$H,">="&$B5,'Sanitized Raw Data'!$H:$H,"<"&$B6,'Sanitized Raw Data'!$D:$D,"ACH Grant Deposit") -> 810 | N5: =SUM(G5,M5,K5,I5,N4,E5) -> 22572.29 | O5: =SUM(F5,H5,J5,L5,D5) -> 173 | P5: =SUM(F5,L5,J5,H5,P4,D5) -> 282 | Q5: =N5/P5 -> 80.04358156 | R5: =(SUM(G5,M5,K5,I5,E5))/(SUM(F5,H5,J5,L5,D5)) -> 75.11421965 | S5: =N5/Sheet11!$A2 -> 11286.145 | T5: =(N5-N4)/C$3 -> 0.3241235159 | U5: =E5/(N5-N4) -> 0 | V5: =D5/O5 -> 0 | W5: =SUM(E$3:E5)/N5 -> 0 | X5: =SUM(D$3:D5)/O5 -> 0 | Y5: =G5/(N5-N4) -> 0 | Z5: =F5/O5 -> 0 | AA5: =SUM(G$3:G5)/N5 -> 0 | AB5: =SUM(F$3:F5)/O5 -> 0 | AC5: =I5/(N5-N4) -> 0.8369234984 | AD5: =H5/O5 -> 0.8265895954 | AE5: =SUM(I$3:I5)/N5 -> 0.5351969162 | AF5: =SUM(H$3:H5)/P5 -> 0.5390070922 | AG5: =K5/(N5-N4) -> 0.1007436844 | AH5: =J5/O5 -> 0.1445086705 | AI5: =SUM(K$3:K5)/N5 -> 0.2066945799 | AJ5: =SUM(J$3:J5)/P5 -> 0.3262411348 | AK5: =M5/(N5-N4) -> 0.06233281723 | AL5: =L5/O5 -> 0.0289017341 | AM5: =SUM(M$3:M5)/N5 -> 0.2581085038 | AN5: =SUM(L$3:L5)/P5 -> 0.134751773 | AP5: Day 2 | AQ5: 2024-10-08 | AR5: 40465 | AS5: 0 | AT5: 0 | AU5: 0 | AV5: 0 | AW5: 143 | AX5: 10161.38 | AY5: 14 | AZ5: 768.47 | BA5: 14 | BB5: 1461.43 | BC5: 18750.36 | BD5: 171 | BE5: 299 | BF5: 62.71023411 | BG5: 72.46362573 | BH5: 9375.18 | BI5: 0.3062221673 | BJ5: 0 | BK5: 0 | BL5: 0 | BM5: 0 | BN5: 0 | BO5: 0 | BP5: 0 | BQ5: 0 | BR5: 0.8200428043 | BS5: 0.8362573099 | BT5: 0.6437503067 | BU5: 0.5551839465 | BV5: 0.06201699905 | BW5: 0.08187134503 | BX5: 0.1003074074 | BY5: 0.2608695652 | BZ5: 0.1179401967 | CA5: 0.08187134503 | CB5: 0.2559422859 | CC5: 0.1839464883 | CE5: Day 2 | CF5: 2024-04-17 | CG5: 39822 | CH5: 0 | CI5: 0 | CJ5: 0 | CK5: 0 | CL5: 66 | CM5: 4377.31 | CN5: 5 | CO5: 234 | CP5: 3 | CQ5: 250 | CR5: 27733.75 | CS5: 74 | CT5: 397 | CU5: 69.85831234 | CV5: 65.69337838 | CW5: 13866.875 | CX5: 0.1220759881 | CY5: 0 | CZ5: 0 | DA5: 0 | DB5: 0 | DC5: 0 | DD5: 0 | DE5: 0 | DF5: 0 | DG5: 0.9004383592 | DH5: 0.8918918919 | DI5: 0.6549060261 | DJ5: 0.604534005 | DK5: 0.04813517344 | DL5: 0.06756756757 | DM5: 0.1038280074 | DN5: 0.2644836272 | DO5: 0.05142646735 | DP5: 0.04054054054 | DQ5: 0.2412659666 | DR5: 0.1309823678 | DT5: Day 2 | DU5: 2023-10-03 | DV5: 48752 | DW5: 0 | DX5: 0 | DY5: 0 | DZ5: 0 | EA5: 69 | EB5: 5796.7 | EC5: 20 | ED5: 1155 | EE5: 4 | EF5: 296 | EG5: 18105.51 | EH5: 93 | EI5: 280 | EJ5: 64.66253571 | EK5: 77.93225806 | EL5: 9052.755 | EM5: 0.1486646702 | EN5: 0 | EO5: 0 | EP5: 0.002761590256 | EQ5: 0.01075268817 | ER5: 0 | ES5: 0 | ET5: 0 | EU5: 0 | EV5: 0.7997985568 | EW5: 0.7419354839 | EX5: 0.4976998715 | EY5: 0.3928571429 | EZ5: 0.1593609007 | FA5: 0.2150537634 | FB5: 0.2276986398 | FC5: 0.45 | FD5: 0.04084054252 | FE5: 0.04301075269 | FF5: 0.2718398985 | FG5: 0.1535714286 | FI5: Day 2 | FJ5: 2023-04-12 | FK5: 50252 | FL5: 0 | FM5: 0 | FN5: 0 | FO5: 0 | FP5: 153 | FQ5: 11667.58 | FR5: 38 | FS5: 1536 | FT5: 13 | FU5: 990 | FV5: 20568.88 | FW5: 204 | FX5: 329 | FY5: 62.5193921 | FZ5: 69.57637255 | GA5: 10284.44 | GB5: 0.2824480618 | GC5: 0 | GD5: 0 | GE5: 0.01215428356 | GF5: 0.01470588235 | GG5: 0 | GH5: 0 | GI5: 0 | GJ5: 0 | GK5: 0.8220322146 | GL5: 0.75 | GM5: 0.6486060495 | GN5: 0.5167173252 | GO5: 0.1082179408 | GP5: 0.1862745098 | GQ5: 0.146110532 | GR5: 0.3313069909 | GS5: 0.06974984465 | GT5: 0.0637254902 | GU5: 0.1931291349 | GV5: 0.1428571429
A6: Day 3 | B6: 2025-04-09 | C6: 40092 | D6: =COUNTIFS('Sanitized Raw Data'!$H:$H,">="&$B6,'Sanitized Raw Data'!$H:$H,"<"&$B7,'Sanitized Raw Data'!$D:$D,"Matching Grant") -> 0 | E6: =SUMIFS('Sanitized Raw Data'!$C:$C,'Sanitized Raw Data'!$H:$H,">="&$B6,'Sanitized Raw Data'!$H:$H,"<"&$B7,'Sanitized Raw Data'!$D:$D,"Matching Grant") -> 0 | F6: =COUNTIFS('Sanitized Raw Data'!$H:$H,">="&$B6,'Sanitized Raw Data'!$H:$H,"<"&$B7,'Sanitized Raw Data'!$D:$D,"Cash") -> 0 | G6: =SUMIFS('Sanitized Raw Data'!$C:$C,'Sanitized Raw Data'!$H:$H,">="&$B6,'Sanitized Raw Data'!$H:$H,"<"&$B7,'Sanitized Raw Data'!$D:$D,"Cash") -> 0 | H6: =COUNTIFS('Sanitized Raw Data'!$H:$H,">="&$B6,'Sanitized Raw Data'!$H:$H,"<"&$B7,'Sanitized Raw Data'!$D:$D,"CC") -> 28 | I6: =SUMIFS('Sanitized Raw Data'!$C:$C,'Sanitized Raw Data'!$H:$H,">="&$B6,'Sanitized Raw Data'!$H:$H,"<"&$B7,'Sanitized Raw Data'!$D:$D,"CC") -> 1832.57 | J6: =COUNTIFS('Sanitized Raw Data'!$H:$H,">="&$B6,'Sanitized Raw Data'!$H:$H,"<"&$B7,'Sanitized Raw Data'!$D:$D,"PayPal") -> 6 | K6: =SUMIFS('Sanitized Raw Data'!$C:$C,'Sanitized Raw Data'!$H:$H,">="&$B6,'Sanitized Raw Data'!$H:$H,"<"&$B7,'Sanitized Raw Data'!$D:$D,"PayPal") -> 142.47 | L6: =COUNTIFS('Sanitized Raw Data'!$H:$H,">="&$B6,'Sanitized Raw Data'!$H:$H,"<"&$B7,'Sanitized Raw Data'!$D:$D,"Personal Check")+COUNTIFS('Sanitized Raw Data'!$H:$H,">="&$B6,'Sanitized Raw Data'!$H:$H,"<"&$B7,'Sanitized Raw Data'!$D:$D,"ACH Grant Deposit") -> 1 | M6: =SUMIFS('Sanitized Raw Data'!$C:$C,'Sanitized Raw Data'!$H:$H,">="&$B6,'Sanitized Raw Data'!$H:$H,"<"&$B7,'Sanitized Raw Data'!$D:$D,"Personal Check")+SUMIFS('Sanitized Raw Data'!$C:$C,'Sanitized Raw Data'!$H:$H,">="&$B6,'Sanitized Raw Data'!$H:$H,"<"&$B7,'Sanitized Raw Data'!$D:$D,"ACH Grant Deposit") -> 50 | N6: =SUM(G6,M6,K6,I6,N5,E6) -> 24597.33 | O6: =SUM(F6,H6,J6,L6,D6) -> 35 | P6: =SUM(F6,L6,J6,H6,P5,D6) -> 317 | Q6: =N6/P6 -> 77.59410095 | R6: =(SUM(G6,M6,K6,I6,E6))/(SUM(F6,H6,J6,L6,D6)) -> 57.85828571 | S6: =N6/Sheet11!$A3 -> 8199.11 | T6: =(N6-N5)/C$3 -> 0.0505098274 | U6: =E6/(N6-N5) -> 0 | V6: =D6/O6 -> 0 | W6: =SUM(E$3:E6)/N6 -> 0 | X6: =SUM(D$3:D6)/O6 -> 0 | Y6: =G6/(N6-N5) -> 0 | Z6: =F6/O6 -> 0 | AA6: =SUM(G$3:G6)/N6 -> 0 | AB6: =SUM(F$3:F6)/O6 -> 0 | AC6: =I6/(N6-N5) -> 0.9049549639 | AD6: =H6/O6 -> 0.8 | AE6: =SUM(I$3:I6)/N6 -> 0.5656382217 | AF6: =SUM(H$3:H6)/P6 -> 0.5678233438 | AG6: =K6/(N6-N5) -> 0.07035416584 | AH6: =J6/O6 -> 0.1714285714 | AI6: =SUM(K$3:K6)/N6 -> 0.1954699961 | AJ6: =SUM(J$3:J6)/P6 -> 0.309148265 | AK6: =M6/(N6-N5) -> 0.0246908703 | AL6: =L6/O6 -> 0.02857142857 | AM6: =SUM(M$3:M6)/N6 -> 0.2388917822 | AN6: =SUM(L$3:L6)/P6 -> 0.1230283912 | AP6: Day 3 | AQ6: 2024-10-09 | AR6: 40465 | AS6: 0 | AT6: 0 | AU6: 0 | AV6: 0 | AW6: 20 | AX6: 1175.31 | AY6: 4 | AZ6: 205 | BA6: 5 | BB6: 251 | BC6: 20381.67 | BD6: 29 | BE6: 328 | BF6: 62.1392378 | BG6: 56.25206897 | BH6: 6793.89 | BI6: 0.0403140986 | BJ6: 0 | BK6: 0 | BL6: 0 | BM6: 0 | BN6: 0 | BO6: 0 | BP6: 0 | BQ6: 0 | BR6: 0.7204700517 | BS6: 0.6896551724 | BT6: 0.6498908088 | BU6: 0.5670731707 | BV6: 0.1256658759 | BW6: 0.1379310345 | BX6: 0.1023370509 | BY6: 0.25 | BZ6: 0.1538640724 | CA6: 0.1724137931 | CB6: 0.2477721404 | CC6: 0.1829268293 | CE6: Day 3 | CF6: 2024-04-18 | CG6: 39822 | CH6: 0 | CI6: 0 | CJ6: 0 | CK6: 0 | CL6: 36 | CM6: 2458.58 | CN6: 1 | CO6: 19.79 | CP6: 2 | CQ6: 94.79 | CR6: 30306.91 | CS6: 39 | CT6: 436 | CU6: 69.51126147 | CV6: 65.97846154 | CW6: 10102.30333 | CX6: 0.06461654362 | CY6: 0 | CZ6: 0 | DA6: 0 | DB6: 0 | DC6: 0 | DD6: 0 | DE6: 0 | DF6: 0 | DG6: 0.9554710939 | DH6: 0.9230769231 | DI6: 0.6804250252 | DJ6: 0.6330275229 | DK6: 0.00769093255 | DL6: 0.02564102564 | DM6: 0.09566564193 | DN6: 0.2431192661 | DO6: 0.03683797354 | DP6: 0.05128205128 | DQ6: 0.2239093329 | DR6: 0.123853211 | DT6: Day 3 | DU6: 2023-10-04 | DV6: 48752 | DW6: 0 | DX6: 0 | DY6: 0 | DZ6: 0 | EA6: 23 | EB6: 1980.77 | EC6: 6 | ED6: 283 | EE6: 4 | EF6: 185 | EG6: 20554.28 | EH6: 33 | EI6: 313 | EJ6: 65.6686262 | EK6: 74.20515152 | EL6: 6851.426667 | EM6: 0.05022911881 | EN6: 0 | EO6: 0 | EP6: 0.002432583384 | EQ6: 0.0303030303 | ER6: 0 | ES6: 0 | ET6: 0 | EU6: 0 | EV6: 0.8088836436 | EW6: 0.696969697 | EX6: 0.534773293 | EY6: 0.4249201278 | EZ6: 0.115568224 | FA6: 0.1818181818 | FB6: 0.2143397871 | FC6: 0.4217252396 | FD6: 0.07554813233 | FE6: 0.1212121212 | FF6: 0.2484543365 | FG6: 0.1501597444 | FI6: Day 3 | FJ6: 2023-04-13 | FK6: 50252 | FL6: 0 | FM6: 0 | FN6: 0 | FO6: 0 | FP6: 26 | FQ6: 1638.29 | FR6: 8 | FS6: 459.79 | FT6: 9 | FU6: 1310 | FV6: 23976.96 | FW6: 43 | FX6: 372 | FY6: 64.45419355 | FZ6: 79.25767442 | GA6: 7992.32 | GB6: 0.06781978827 | GC6: 0 | GD6: 0 | GE6: 0.01042667628 | GF6: 0.06976744186 | GG6: 0 | GH6: 0 | GI6: 0 | GJ6: 0 | GK6: 0.4807076125 | GL6: 0.6046511628 | GM6: 0.6247410014 | GN6: 0.5268817204 | GO6: 0.1349117392 | GP6: 0.1860465116 | GQ6: 0.144518738 | GR6: 0.314516129 | GS6: 0.3843806483 | GT6: 0.2093023256 | GU6: 0.2203135844 | GV6: 0.1505376344
A7: Day 4 | B7: 2025-04-10 | C7: 40092 | D7: =COUNTIFS('Sanitized Raw Data'!$H:$H,">="&$B7,'Sanitized Raw Data'!$H:$H,"<"&$B8,'Sanitized Raw Data'!$D:$D,"Matching Grant") -> 0 | E7: =SUMIFS('Sanitized Raw Data'!$C:$C,'Sanitized Raw Data'!$H:$H,">="&$B7,'Sanitized Raw Data'!$H:$H,"<"&$B8,'Sanitized Raw Data'!$D:$D,"Matching Grant") -> 0 | F7: =COUNTIFS('Sanitized Raw Data'!$H:$H,">="&$B7,'Sanitized Raw Data'!$H:$H,"<"&$B8,'Sanitized Raw Data'!$D:$D,"Cash") -> 0 | G7: =SUMIFS('Sanitized Raw Data'!$C:$C,'Sanitized Raw Data'!$H:$H,">="&$B7,'Sanitized Raw Data'!$H:$H,"<"&$B8,'Sanitized Raw Data'!$D:$D,"Cash") -> 0 | H7: =COUNTIFS('Sanitized Raw Data'!$H:$H,">="&$B7,'Sanitized Raw Data'!$H:$H,"<"&$B8,'Sanitized Raw Data'!$D:$D,"CC") -> 10 | I7: =SUMIFS('Sanitized Raw Data'!$C:$C,'Sanitized Raw Data'!$H:$H,">="&$B7,'Sanitized Raw Data'!$H:$H,"<"&$B8,'Sanitized Raw Data'!$D:$D,"CC") -> 711 | J7: =COUNTIFS('Sanitized Raw Data'!$H:$H,">="&$B7,'Sanitized Raw Data'!$H:$H,"<"&$B8,'Sanitized Raw Data'!$D:$D,"PayPal") -> 5 | K7: =SUMIFS('Sanitized Raw Data'!$C:$C,'Sanitized Raw Data'!$H:$H,">="&$B7,'Sanitized Raw Data'!$H:$H,"<"&$B8,'Sanitized Raw Data'!$D:$D,"PayPal") -> 375 | L7: =COUNTIFS('Sanitized Raw Data'!$H:$H,">="&$B7,'Sanitized Raw Data'!$H:$H,"<"&$B8,'Sanitized Raw Data'!$D:$D,"Personal Check")+COUNTIFS('Sanitized Raw Data'!$H:$H,">="&$B7,'Sanitized Raw Data'!$H:$H,"<"&$B8,'Sanitized Raw Data'!$D:$D,"ACH Grant Deposit") -> 0 | M7: =SUMIFS('Sanitized Raw Data'!$C:$C,'Sanitized Raw Data'!$H:$H,">="&$B7,'Sanitized Raw Data'!$H:$H,"<"&$B8,'Sanitized Raw Data'!$D:$D,"Personal Check")+SUMIFS('Sanitized Raw Data'!$C:$C,'Sanitized Raw Data'!$H:$H,">="&$B7,'Sanitized Raw Data'!$H:$H,"<"&$B8,'Sanitized Raw Data'!$D:$D,"ACH Grant Deposit") -> 0 | N7: =SUM(G7,M7,K7,I7,N6,E7) -> 25683.33 | O7: =SUM(F7,H7,J7,L7,D7) -> 15 | P7: =SUM(F7,L7,J7,H7,P6,D7) -> 332 | Q7: =N7/P7 -> 77.35942771 | R7: =(SUM(G7,M7,K7,I7,E7))/(SUM(F7,H7,J7,L7,D7)) -> 72.4 | S7: =N7/Sheet11!$A4 -> 6420.8325 | T7: =(N7-N6)/C$3 -> 0.02708769829 | U7: =E7/(N7-N6) -> 0 | V7: =D7/O7 -> 0 | W7: =SUM(E$3:E7)/N7 -> 0 | X7: =SUM(D$3:D7)/O7 -> 0 | Y7: =G7/(N7-N6) -> 0 | Z7: =F7/O7 -> 0 | AA7: =SUM(G$3:G7)/N7 -> 0 | AB7: =SUM(F$3:F7)/O7 -> 0 | AC7: =I7/(N7-N6) -> 0.6546961326 | AD7: =H7/O7 -> 0.6666666667 | AE7: =SUM(I$3:I7)/N7 -> 0.5694039675 | AF7: =SUM(H$3:H7)/P7 -> 0.5722891566 | AG7: =K7/(N7-N6) -> 0.3453038674 | AH7: =J7/O7 -> 0.3333333333 | AI7: =SUM(K$3:K7)/N7 -> 0.201805607 | AJ7: =SUM(J$3:J7)/P7 -> 0.3102409639 | AK7: =M7/(N7-N6) -> 0 | AL7: =L7/O7 -> 0 | AM7: =SUM(M$3:M7)/N7 -> 0.2287904255 | AN7: =SUM(L$3:L7)/P7 -> 0.1174698795 | AP7: Day 4 | AQ7: 2024-10-10 | AR7: 40465 | AS7: 0 | AT7: 0 | AU7: 0 | AV7: 0 | AW7: 18 | AX7: 1622.56 | AY7: 0 | AZ7: 0 | BA7: 1 | BB7: 50 | BC7: 22054.23 | BD7: 19 | BE7: 347 | BF7: 63.55685879 | BG7: 88.02947368 | BH7: 5513.5575 | BI7: 0.04133349808 | BJ7: 0 | BK7: 0 | BL7: 0 | BM7: 0 | BN7: 0 | BO7: 0 | BP7: 0 | BQ7: 0 | BR7: 0.9701057062 | BS7: 0.9473684211 | BT7: 0.6741754303 | BU7: 0.5878962536 | BV7: 0 | BW7: 0 | BX7: 0.09457596116 | BY7: 0.2363112392 | BZ7: 0.02989429378 | CA7: 0.05263157895 | CB7: 0.2312486085 | CC7: 0.1757925072 | CE7: Day 4 | CF7: 2024-04-19 | CG7: 39822 | CH7: 0 | CI7: 0 | CJ7: 0 | CK7: 0 | CL7: 38 | CM7: 3547.8 | CN7: 5 | CO7: 258 | CP7: 3 | CQ7: 214 | CR7: 34326.71 | CS7: 46 | CT7: 482 | CU7: 71.21724066 | CV7: 87.38695652 | CW7: 8581.6775 | CX7: 0.1009442017 | CY7: 0 | CZ7: 0 | DA7: 0 | DB7: 0 | DC7: 0 | DD7: 0 | DE7: 0 | DF7: 0 | DG7: 0.8825812229 | DH7: 0.8260869565 | DI7: 0.7040983537 | DJ7: 0.6514522822 | DK7: 0.06418229763 | DL7: 0.1086956522 | DM7: 0.09197881183 | DN7: 0.2302904564 | DO7: 0.05323647943 | DP7: 0.0652173913 | DQ7: 0.2039228344 | DR7: 0.1182572614 | DT7: Day 4 | DU7: 2023-10-05 | DV7: 48752 | DW7: 0 | DX7: 0 | DY7: 0 | DZ7: 0 | EA7: 34 | EB7: 2879.32 | EC7: 5 | ED7: 267 | EE7: 1 | EF7: 51 | EG7: 23751.6 | EH7: 40 | EI7: 353 | EJ7: 67.28498584 | EK7: 79.933 | EL7: 5937.9 | EM7: 0.06558336068 | EN7: 0 | EO7: 0 | EP7: 0.002105121339 | EQ7: 0.025 | ER7: 0 | ES7: 0 | ET7: 0 | EU7: 0 | EV7: 0.9005417037 | EW7: 0.85 | EX7: 0.5840111824 | EY7: 0.4730878187 | EZ7: 0.08350743748 | FA7: 0.125 | FB7: 0.1967277994 | FC7: 0.388101983 | FD7: 0.01595085884 | FE7: 0.025 | FF7: 0.2171558969 | FG7: 0.1359773371 | FI7: Day 4 | FJ7: 2023-04-14 | FK7: 50252 | FL7: 0 | FM7: 0 | FN7: 0 | FO7: 0 | FP7: 13 | FQ7: 1084.77 | FR7: 4 | FS7: 154.79 | FT7: 3 | FU7: 172 | FV7: 25388.52 | FW7: 20 | FX7: 392 | FY7: 64.76663265 | FZ7: 70.578 | GA7: 6347.13 | GB7: 0.02808962827 | GC7: 0 | GD7: 0 | GE7: 0.009846970205 | GF7: 0.15 | GG7: 0 | GH7: 0 | GI7: 0 | GJ7: 0 | GK7: 0.7684901811 | GL7: 0.65 | GM7: 0.6327332196 | GN7: 0.5331632653 | GO7: 0.1096588172 | GP7: 0.2 | GQ7: 0.1425805837 | GR7: 0.3086734694 | GS7: 0.1218510017 | GT7: 0.15 | GU7: 0.2148392265 | GV7: 0.1505102041
A8: Day 5 | B8: 2025-04-11 | C8: 40092 | D8: =COUNTIFS('Sanitized Raw Data'!$H:$H,">="&$B8,'Sanitized Raw Data'!$H:$H,"<"&$B9,'Sanitized Raw Data'!$D:$D,"Matching Grant") -> 0 | E8: =SUMIFS('Sanitized Raw Data'!$C:$C,'Sanitized Raw Data'!$H:$H,">="&$B8,'Sanitized Raw Data'!$H:$H,"<"&$B9,'Sanitized Raw Data'!$D:$D,"Matching Grant") -> 0 | F8: =COUNTIFS('Sanitized Raw Data'!$H:$H,">="&$B8,'Sanitized Raw Data'!$H:$H,"<"&$B9,'Sanitized Raw Data'!$D:$D,"Cash") -> 0 | G8: =SUMIFS('Sanitized Raw Data'!$C:$C,'Sanitized Raw Data'!$H:$H,">="&$B8,'Sanitized Raw Data'!$H:$H,"<"&$B9,'Sanitized Raw Data'!$D:$D,"Cash") -> 0 | H8: =COUNTIFS('Sanitized Raw Data'!$H:$H,">="&$B8,'Sanitized Raw Data'!$H:$H,"<"&$B9,'Sanitized Raw Data'!$D:$D,"CC") -> 17 | I8: =SUMIFS('Sanitized Raw Data'!$C:$C,'Sanitized Raw Data'!$H:$H,">="&$B8,'Sanitized Raw Data'!$H:$H,"<"&$B9,'Sanitized Raw Data'!$D:$D,"CC") -> 1669 | J8: =COUNTIFS('Sanitized Raw Data'!$H:$H,">="&$B8,'Sanitized Raw Data'!$H:$H,"<"&$B9,'Sanitized Raw Data'!$D:$D,"PayPal") -> 1 | K8: =SUMIFS('Sanitized Raw Data'!$C:$C,'Sanitized Raw Data'!$H:$H,">="&$B8,'Sanitized Raw Data'!$H:$H,"<"&$B9,'Sanitized Raw Data'!$D:$D,"PayPal") -> 10 | L8: =COUNTIFS('Sanitized Raw Data'!$H:$H,">="&$B8,'Sanitized Raw Data'!$H:$H,"<"&$B9,'Sanitized Raw Data'!$D:$D,"Personal Check")+COUNTIFS('Sanitized Raw Data'!$H:$H,">="&$B8,'Sanitized Raw Data'!$H:$H,"<"&$B9,'Sanitized Raw Data'!$D:$D,"ACH Grant Deposit") -> 0 | M8: =SUMIFS('Sanitized Raw Data'!$C:$C,'Sanitized Raw Data'!$H:$H,">="&$B8,'Sanitized Raw Data'!$H:$H,"<"&$B9,'Sanitized Raw Data'!$D:$D,"Personal Check")+SUMIFS('Sanitized Raw Data'!$C:$C,'Sanitized Raw Data'!$H:$H,">="&$B8,'Sanitized Raw Data'!$H:$H,"<"&$B9,'Sanitized Raw Data'!$D:$D,"ACH Grant Deposit") -> 0 | N8: =SUM(G8,M8,K8,I8,N7,E8) -> 27362.33 | O8: =SUM(F8,H8,J8,L8,D8) -> 18 | P8: =SUM(F8,L8,J8,H8,P7,D8) -> 350 | Q8: =N8/P8 -> 78.17808571 | R8: =(SUM(G8,M8,K8,I8,E8))/(SUM(F8,H8,J8,L8,D8)) -> 93.27777778 | S8: =N8/Sheet11!$A5 -> 5472.466 | T8: =(N8-N7)/C$3 -> 0.04187867904 | U8: =E8/(N8-N7) -> 0 | V8: =D8/O8 -> 0 | W8: =SUM(E$3:E8)/N8 -> 0 | X8: =SUM(D$3:D8)/O8 -> 0 | Y8: =G8/(N8-N7) -> 0 | Z8: =F8/O8 -> 0 | AA8: =SUM(G$3:G8)/N8 -> 0 | AB8: =SUM(F$3:F8)/O8 -> 0 | AC8: =I8/(N8-N7) -> 0.9940440739 | AD8: =H8/O8 -> 0.9444444444 | AE8: =SUM(I$3:I8)/N8 -> 0.5954606205 | AF8: =SUM(H$3:H8)/P8 -> 0.5914285714 | AG8: =K8/(N8-N7) -> 0.005955926147 | AH8: =J8/O8 -> 0.05555555556 | AI8: =SUM(K$3:K8)/N8 -> 0.1897879311 | AJ8: =SUM(J$3:J8)/P8 -> 0.2971428571 | AK8: =M8/(N8-N7) -> 0 | AL8: =L8/O8 -> 0 | AM8: =SUM(M$3:M8)/N8 -> 0.2147514484 | AN8: =SUM(L$3:L8)/P8 -> 0.1114285714 | AP8: Day 5 | AQ8: 2024-10-11 | AR8: 40465 | AS8: 0 | AT8: 0 | AU8: 0 | AV8: 0 | AW8: 15 | AX8: 1070 | AY8: 3 | AZ8: 95 | BA8: 1 | BB8: 25 | BC8: 23244.23 | BD8: 19 | BE8: 366 | BF8: 63.50882514 | BG8: 62.63157895 | BH8: 4648.846 | BI8: 0.02940813048 | BJ8: 0 | BK8: 0 | BL8: 0 | BM8: 0 | BN8: 0 | BO8: 0 | BP8: 0 | BQ8: 0 | BR8: 0.8991596639 | BS8: 0.7894736842 | BT8: 0.6856936108 | BU8: 0.5983606557 | BV8: 0.07983193277 | BW8: 0.1578947368 | BX8: 0.09382113324 | BY8: 0.2322404372 | BZ8: 0.02100840336 | CA8: 0.05263157895 | CB8: 0.2204852559 | CC8: 0.1693989071 | CE8: Day 5 | CF8: 2024-04-20 | CG8: 39822 | CH8: 0 | CI8: 0 | CJ8: 0 | CK8: 0 | CL8: 24 | CM8: 1741.79 | CN8: 0 | CO8: 0 | CP8: 3 | CQ8: 739 | CR8: 36807.5 | CS8: 27 | CT8: 509 | CU8: 72.31335953 | CV8: 91.88111111 | CW8: 7361.5 | CX8: 0.06229697152 | CY8: 0 | CZ8: 0 | DA8: 0 | DB8: 0 | DC8: 0 | DD8: 0 | DE8: 0 | DF8: 0 | DG8: 0.7021110211 | DH8: 0.8888888889 | DI8: 0.7039644094 | DJ8: 0.6640471513 | DK8: 0 | DL8: 0 | DM8: 0.08577952863 | DN8: 0.2180746562 | DO8: 0.2978889789 | DP8: 0.1111111111 | DQ8: 0.2102560619 | DR8: 0.1178781925 | DT8: Day 5 | DU8: 2023-10-06 | DV8: 48752 | DW8: 0 | DX8: 0 | DY8: 0 | DZ8: 0 | EA8: 10 | EB8: 678.54 | EC8: 2 | ED8: 115 | EE8: 3 | EF8: 216 | EG8: 24761.14 | EH8: 15 | EI8: 368 | EJ8: 67.28570652 | EK8: 67.30266667 | EL8: 4952.228 | EM8: 0.02070766328 | EN8: 0 | EO8: 0 | EP8: 0.002019293134 | EQ8: 0.06666666667 | ER8: 0 | ES8: 0 | ET8: 0 | EU8: 0 | EV8: 0.6721278998 | EW8: 0.6666666667 | EX8: 0.5876038018 | EY8: 0.4809782609 | EZ8: 0.1139132674 | FA8: 0.1333333333 | FB8: 0.1933513562 | FC8: 0.3777173913 | FD8: 0.2139588327 | FE8: 0.2 | FF8: 0.2170255489 | FG8: 0.1385869565 | FI8: Day 5 | FJ8: 2023-04-15 | FK8: 50252 | FL8: 0 | FM8: 0 | FN8: 0 | FO8: 0 | FP8: 30 | FQ8: 1733.16 | FR8: 3 | FS8: 144.77 | FT8: 5 | FU8: 285.77 | FV8: 27552.22 | FW8: 38 | FX8: 430 | FY8: 64.07493023 | FZ8: 56.93947368 | GA8: 5510.444 | GB8: 0.04305699276 | GC8: 0 | GD8: 0 | GE8: 0.009073678999 | GF8: 0.07894736842 | GG8: 0 | GH8: 0 | GI8: 0 | GJ8: 0 | GK8: 0.8010167768 | GL8: 0.7894736842 | GM8: 0.6459486749 | GN8: 0.5558139535 | GO8: 0.0669085363 | GP8: 0.07894736842 | GQ8: 0.1366379914 | GR8: 0.288372093 | GS8: 0.1320746869 | GT8: 0.1315789474 | GU8: 0.2083396547 | GV8: 0.1488372093
A9: Day 6 | B9: 2025-04-12 | C9: 40092 | D9: =COUNTIFS('Sanitized Raw Data'!$H:$H,">="&$B9,'Sanitized Raw Data'!$H:$H,"<"&$B10,'Sanitized Raw Data'!$D:$D,"Matching Grant") -> 0 | E9: =SUMIFS('Sanitized Raw Data'!$C:$C,'Sanitized Raw Data'!$H:$H,">="&$B9,'Sanitized Raw Data'!$H:$H,"<"&$B10,'Sanitized Raw Data'!$D:$D,"Matching Grant") -> 0 | F9: =COUNTIFS('Sanitized Raw Data'!$H:$H,">="&$B9,'Sanitized Raw Data'!$H:$H,"<"&$B10,'Sanitized Raw Data'!$D:$D,"Cash") -> 0 | G9: =SUMIFS('Sanitized Raw Data'!$C:$C,'Sanitized Raw Data'!$H:$H,">="&$B9,'Sanitized Raw Data'!$H:$H,"<"&$B10,'Sanitized Raw Data'!$D:$D,"Cash") -> 0 | H9: =COUNTIFS('Sanitized Raw Data'!$H:$H,">="&$B9,'Sanitized Raw Data'!$H:$H,"<"&$B10,'Sanitized Raw Data'!$D:$D,"CC") -> 39 | I9: =SUMIFS('Sanitized Raw Data'!$C:$C,'Sanitized Raw Data'!$H:$H,">="&$B9,'Sanitized Raw Data'!$H:$H,"<"&$B10,'Sanitized Raw Data'!$D:$D,"CC") -> 4493.43 | J9: =COUNTIFS('Sanitized Raw Data'!$H:$H,">="&$B9,'Sanitized Raw Data'!$H:$H,"<"&$B10,'Sanitized Raw Data'!$D:$D,"PayPal") -> 0 | K9: =SUMIFS('Sanitized Raw Data'!$C:$C,'Sanitized Raw Data'!$H:$H,">="&$B9,'Sanitized Raw Data'!$H:$H,"<"&$B10,'Sanitized Raw Data'!$D:$D,"PayPal") -> 0 | L9: =COUNTIFS('Sanitized Raw Data'!$H:$H,">="&$B9,'Sanitized Raw Data'!$H:$H,"<"&$B10,'Sanitized Raw Data'!$D:$D,"Personal Check")+COUNTIFS('Sanitized Raw Data'!$H:$H,">="&$B9,'Sanitized Raw Data'!$H:$H,"<"&$B10,'Sanitized Raw Data'!$D:$D,"ACH Grant Deposit") -> 0 | M9: =SUMIFS('Sanitized Raw Data'!$C:$C,'Sanitized Raw Data'!$H:$H,">="&$B9,'Sanitized Raw Data'!$H:$H,"<"&$B10,'Sanitized Raw Data'!$D:$D,"Personal Check")+SUMIFS('Sanitized Raw Data'!$C:$C,'Sanitized Raw Data'!$H:$H,">="&$B9,'Sanitized Raw Data'!$H:$H,"<"&$B10,'Sanitized Raw Data'!$D:$D,"ACH Grant Deposit") -> 0 | N9: =SUM(G9,M9,K9,I9,N8,E9) -> 31855.76 | O9: =SUM(F9,H9,J9,L9,D9) -> 39 | P9: =SUM(F9,L9,J9,H9,P8,D9) -> 389 | Q9: =N9/P9 -> 81.89141388 | R9: =(SUM(G9,M9,K9,I9,E9))/(SUM(F9,H9,J9,L9,D9)) -> 115.2161538 | S9: =N9/Sheet11!$A6 -> 5309.293333 | T9: =(N9-N8)/C$3 -> 0.1120779707 | U9: =E9/(N9-N8) -> 0 | V9: =D9/O9 -> 0 | W9: =SUM(E$3:E9)/N9 -> 0 | X9: =SUM(D$3:D9)/O9 -> 0 | Y9: =G9/(N9-N8) -> 0 | Z9: =F9/O9 -> 0 | AA9: =SUM(G$3:G9)/N9 -> 0 | AB9: =SUM(F$3:F9)/O9 -> 0 | AC9: =I9/(N9-N8) -> 1 | AD9: =H9/O9 -> 1 | AE9: =SUM(I$3:I9)/N9 -> 0.652523123 | AF9: =SUM(H$3:H9)/P9 -> 0.6323907455 | AG9: =K9/(N9-N8) -> 0 | AH9: =J9/O9 -> 0 | AI9: =SUM(K$3:K9)/N9 -> 0.1630173005 | AJ9: =SUM(J$3:J9)/P9 -> 0.2673521851 | AK9: =M9/(N9-N8) -> 0 | AL9: =L9/O9 -> 0 | AM9: =SUM(M$3:M9)/N9 -> 0.1844595765 | AN9: =SUM(L$3:L9)/P9 -> 0.1002570694 | AP9: Day 6 | AQ9: 2024-10-12 | AR9: 40465 | AS9: 0 | AT9: 0 | AU9: 0 | AV9: 0 | AW9: 30 | AX9: 2715 | AY9: 3 | AZ9: 192 | BA9: 0 | BB9: 0 | BC9: 26151.23 | BD9: 33 | BE9: 399 | BF9: 65.54192982 | BG9: 88.09090909 | BH9: 4358.538333 | BI9: 0.07183986161 | BJ9: 0 | BK9: 0 | BL9: 0 | BM9: 0 | BN9: 0 | BO9: 0 | BP9: 0 | BQ9: 0 | BR9: 0.9339525284 | BS9: 0.9090909091 | BT9: 0.71329035 | BU9: 0.6240601504 | BV9: 0.06604747162 | BW9: 0.09090909091 | BX9: 0.09073378193 | BY9: 0.2205513784 | BZ9: 0 | CA9: 0 | CB9: 0.1959758681 | CC9: 0.1553884712 | CE9: Day 6 | CF9: 2024-04-21 | CG9: 39822 | CH9: 0 | CI9: 0 | CJ9: 0 | CK9: 0 | CL9: 9 | CM9: 986 | CN9: 3 | CO9: 89.78 | CP9: 0 | CQ9: 0 | CR9: 37883.28 | CS9: 12 | CT9: 521 | CU9: 72.71262956 | CV9: 89.64833333 | CW9: 6313.88 | CX9: 0.02701471548 | CY9: 0 | CZ9: 0 | DA9: 0 | DB9: 0 | DC9: 0 | DD9: 0 | DE9: 0 | DF9: 0 | DG9: 0.9165442749 | DH9: 0.75 | DI9: 0.7100010876 | DJ9: 0.6660268714 | DK9: 0.08345572515 | DL9: 0.25 | DM9: 0.08571353906 | DN9: 0.2188099808 | DO9: 0 | DP9: 0 | DQ9: 0.2042853734 | DR9: 0.1151631478 | DT9: Day 6 | DU9: 2023-10-07 | DV9: 48752 | DW9: 0 | DX9: 0 | DY9: 0 | DZ9: 0 | EA9: 6 | EB9: 264.54 | EC9: 1 | ED9: 24 | EE9: 1 | EF9: 64 | EG9: 25113.68 | EH9: 8 | EI9: 376 | EJ9: 66.79170213 | EK9: 44.0675 | EL9: 4185.613333 | EM9: 0.007231293075 | EN9: 0 | EO9: 0 | EP9: 0.001990946767 | EQ9: 0.125 | ER9: 0 | ES9: 0 | ET9: 0 | EU9: 0 | EV9: 0.7503829353 | EW9: 0.75 | EX9: 0.5898888574 | EY9: 0.4867021277 | EZ9: 0.06807738129 | FA9: 0.125 | FB9: 0.1915927893 | FC9: 0.3723404255 | FD9: 0.1815396834 | FE9: 0.125 | FF9: 0.2165274066 | FG9: 0.1382978723 | FI9: Day 6 | FJ9: 2023-04-16 | FK9: 50252 | FL9: 0 | FM9: 0 | FN9: 0 | FO9: 0 | FP9: 13 | FQ9: 837.97 | FR9: 1 | FS9: 100 | FT9: 0 | FU9: 0 | FV9: 28490.19 | FW9: 14 | FX9: 444 | FY9: 64.16709459 | FZ9: 66.99785714 | GA9: 4748.365 | GB9: 0.01866532675 | GC9: 0 | GD9: 0 | GE9: 0.008774950255 | GF9: 0.2142857143 | GG9: 0 | GH9: 0 | GI9: 0 | GJ9: 0 | GK9: 0.8933867821 | GL9: 0.9285714286 | GM9: 0.6540949709 | GN9: 0.5675675676 | GO9: 0.1066132179 | GP9: 0.07142857143 | GQ9: 0.135649499 | GR9: 0.2815315315 | GS9: 0 | GT9: 0 | GU9: 0.2014805798 | GV9: 0.1441441441
A10: Day 7 | B10: 2025-04-13 | C10: 40092 | D10: =COUNTIFS('Sanitized Raw Data'!$H:$H,">="&$B10,'Sanitized Raw Data'!$H:$H,"<"&$B11,'Sanitized Raw Data'!$D:$D,"Matching Grant") -> 0 | E10: =SUMIFS('Sanitized Raw Data'!$C:$C,'Sanitized Raw Data'!$H:$H,">="&$B10,'Sanitized Raw Data'!$H:$H,"<"&$B11,'Sanitized Raw Data'!$D:$D,"Matching Grant") -> 0 | F10: =COUNTIFS('Sanitized Raw Data'!$H:$H,">="&$B10,'Sanitized Raw Data'!$H:$H,"<"&$B11,'Sanitized Raw Data'!$D:$D,"Cash") -> 0 | G10: =SUMIFS('Sanitized Raw Data'!$C:$C,'Sanitized Raw Data'!$H:$H,">="&$B10,'Sanitized Raw Data'!$H:$H,"<"&$B11,'Sanitized Raw Data'!$D:$D,"Cash") -> 0 | H10: =COUNTIFS('Sanitized Raw Data'!$H:$H,">="&$B10,'Sanitized Raw Data'!$H:$H,"<"&$B11,'Sanitized Raw Data'!$D:$D,"CC") -> 6 | I10: =SUMIFS('Sanitized Raw Data'!$C:$C,'Sanitized Raw Data'!$H:$H,">="&$B10,'Sanitized Raw Data'!$H:$H,"<"&$B11,'Sanitized Raw Data'!$D:$D,"CC") -> 367 | J10: =COUNTIFS('Sanitized Raw Data'!$H:$H,">="&$B10,'Sanitized Raw Data'!$H:$H,"<"&$B11,'Sanitized Raw Data'!$D:$D,"PayPal") -> 0 | K10: =SUMIFS('Sanitized Raw Data'!$C:$C,'Sanitized Raw Data'!$H:$H,">="&$B10,'Sanitized Raw Data'!$H:$H,"<"&$B11,'Sanitized Raw Data'!$D:$D,"PayPal") -> 0 | L10: =COUNTIFS('Sanitized Raw Data'!$H:$H,">="&$B10,'Sanitized Raw Data'!$H:$H,"<"&$B11,'Sanitized Raw Data'!$D:$D,"Personal Check")+COUNTIFS('Sanitized Raw Data'!$H:$H,">="&$B10,'Sanitized Raw Data'!$H:$H,"<"&$B11,'Sanitized Raw Data'!$D:$D,"ACH Grant Deposit") -> 0 | M10: =SUMIFS('Sanitized Raw Data'!$C:$C,'Sanitized Raw Data'!$H:$H,">="&$B10,'Sanitized Raw Data'!$H:$H,"<"&$B11,'Sanitized Raw Data'!$D:$D,"Personal Check")+SUMIFS('Sanitized Raw Data'!$C:$C,'Sanitized Raw Data'!$H:$H,">="&$B10,'Sanitized Raw Data'!$H:$H,"<"&$B11,'Sanitized Raw Data'!$D:$D,"ACH Grant Deposit") -> 0 | N10: =SUM(G10,M10,K10,I10,N9,E10) -> 32222.76 | O10: =SUM(F10,H10,J10,L10,D10) -> 6 | P10: =SUM(F10,L10,J10,H10,P9,D10) -> 395 | Q10: =N10/P10 -> 81.57660759 | R10: =(SUM(G10,M10,K10,I10,E10))/(SUM(F10,H10,J10,L10,D10)) -> 61.16666667 | S10: =N10/Sheet11!$A7 -> 4603.251429 | T10: =(N10-N9)/C$3 -> 0.009153945924 | U10: =E10/(N10-N9) -> 0 | V10: =D10/O10 -> 0 | W10: =SUM(E$3:E10)/N10 -> 0 | X10: =SUM(D$3:D10)/O10 -> 0 | Y10: =G10/(N10-N9) -> 0 | Z10: =F10/O10 -> 0 | AA10: =SUM(G$3:G10)/N10 -> 0 | AB10: =SUM(F$3:F10)/O10 -> 0 | AC10: =I10/(N10-N9) -> 1 | AD10: =H10/O10 -> 1 | AE10: =SUM(I$3:I10)/N10 -> 0.6564806987 | AF10: =SUM(H$3:H10)/P10 -> 0.6379746835 | AG10: =K10/(N10-N9) -> 0 | AH10: =J10/O10 -> 0 | AI10: =SUM(K$3:K10)/N10 -> 0.1611606206 | AJ10: =SUM(J$3:J10)/P10 -> 0.2632911392 | AK10: =M10/(N10-N9) -> 0 | AL10: =L10/O10 -> 0 | AM10: =SUM(M$3:M10)/N10 -> 0.1823586806 | AN10: =SUM(L$3:L10)/P10 -> 0.09873417722 | AP10: Day 7 | AQ10: 2024-10-13 | AR10: 40465 | AS10: 0 | AT10: 0 | AU10: 0 | AV10: 0 | AW10: 12 | AX10: 811.43 | AY10: 1 | AZ10: 100 | BA10: 0 | BB10: 0 | BC10: 27062.66 | BD10: 13 | BE10: 412 | BF10: 65.68606796 | BG10: 70.11 | BH10: 3866.094286 | BI10: 0.02252390955 | BJ10: 0 | BK10: 0 | BL10: 0 | BM10: 0 | BN10: 0 | BO10: 0 | BP10: 0 | BQ10: 0 | BR10: 0.8902823036 | BS10: 0.9230769231 | BT10: 0.7192511749 | BU10: 0.6334951456 | BV10: 0.1097176964 | BW10: 0.07692307692 | BX10: 0.09137313184 | BY10: 0.2160194175 | BZ10: 0 | CA10: 0 | CB10: 0.1893756933 | CC10: 0.1504854369 | CE10: Day 7 | CF10: 2024-04-22 | CG10: 39822 | CH10: 0 | CI10: 0 | CJ10: 0 | CK10: 0 | CL10: 26 | CM10: 1811.48 | CN10: 2 | CO10: 200 | CP10: 0 | CQ10: 0 | CR10: 39894.76 | CS10: 28 | CT10: 549 | CU10: 72.668051 | CV10: 71.83857143 | CW10: 5699.251429 | CX10: 0.05051177741 | CY10: 0 | CZ10: 0 | DA10: 0 | DB10: 0 | DC10: 0 | DD10: 0 | DE10: 0 | DF10: 0 | DG10: 0.900570724 | DH10: 0.9285714286 | DI10: 0.7196095427 | DJ10: 0.679417122 | DK10: 0.09942927596 | DL10: 0.07142857143 | DM10: 0.08640508177 | DN10: 0.2112932605 | DO10: 0 | DP10: 0 | DQ10: 0.1939853755 | DR10: 0.1092896175 | DT10: Day 7 | DU10: 2023-10-08 | DV10: 48752 | DW10: 0 | DX10: 0 | DY10: 0 | DZ10: 0 | EA10: 23 | EB10: 1686 | EC10: 4 | ED10: 237 | EE10: 1 | EF10: 25 | EG10: 27061.68 | EH10: 28 | EI10: 404 | EJ10: 66.98435644 | EK10: 69.57142857 | EL10: 3865.954286 | EM10: 0.03995733508 | EN10: 0 | EO10: 0 | EP10: 0.001847631041 | EQ10: 0.03571428571 | ER10: 0 | ES10: 0 | ET10: 0 | EU10: 0 | EV10: 0.8655030801 | EW10: 0.8214285714 | EX10: 0.6097285904 | EY10: 0.5099009901 | EZ10: 0.1216632444 | FA10: 0.1428571429 | FB10: 0.1865590015 | FC10: 0.3564356436 | FD10: 0.01283367556 | FE10: 0.03571428571 | FF10: 0.2018647771 | FG10: 0.1311881188 | FI10: Day 7 | FJ10: 2023-04-17 | FK10: 50252 | FL10: 0 | FM10: 0 | FN10: 0 | FO10: 0 | FP10: 8 | FQ10: 319.63 | FR10: 1 | FS10: 19.89 | FT10: 3 | FU10: 350 | FV10: 29179.71 | FW10: 12 | FX10: 456 | FY10: 63.99059211 | FZ10: 57.46 | GA10: 4168.53 | GB10: 0.01372124493 | GC10: 0 | GD10: 0 | GE10: 0.008567597142 | GF10: 0.25 | GG10: 0 | GH10: 0 | GI10: 0 | GJ10: 0 | GK10: 0.4635543567 | GL10: 0.6666666667 | GM10: 0.6495924737 | GN10: 0.5701754386 | GO10: 0.02884615385 | GP10: 0.08333333333 | GQ10: 0.1331257233 | GR10: 0.2763157895 | GS10: 0.5075994895 | GT10: 0.25 | GU10: 0.2087142059 | GV10: 0.1469298246
A11: Day 8 | B11: 2025-04-14 | C11: 40092 | D11: =COUNTIFS('Sanitized Raw Data'!$H:$H,">="&$B11,'Sanitized Raw Data'!$H:$H,"<"&$B12,'Sanitized Raw Data'!$D:$D,"Matching Grant") -> 0 | E11: =SUMIFS('Sanitized Raw Data'!$C:$C,'Sanitized Raw Data'!$H:$H,">="&$B11,'Sanitized Raw Data'!$H:$H,"<"&$B12,'Sanitized Raw Data'!$D:$D,"Matching Grant") -> 0 | F11: =COUNTIFS('Sanitized Raw Data'!$H:$H,">="&$B11,'Sanitized Raw Data'!$H:$H,"<"&$B12,'Sanitized Raw Data'!$D:$D,"Cash") -> 0 | G11: =SUMIFS('Sanitized Raw Data'!$C:$C,'Sanitized Raw Data'!$H:$H,">="&$B11,'Sanitized Raw Data'!$H:$H,"<"&$B12,'Sanitized Raw Data'!$D:$D,"Cash") -> 0 | H11: =COUNTIFS('Sanitized Raw Data'!$H:$H,">="&$B11,'Sanitized Raw Data'!$H:$H,"<"&$B12,'Sanitized Raw Data'!$D:$D,"CC") -> 23 | I11: =SUMIFS('Sanitized Raw Data'!$C:$C,'Sanitized Raw Data'!$H:$H,">="&$B11,'Sanitized Raw Data'!$H:$H,"<"&$B12,'Sanitized Raw Data'!$D:$D,"CC") -> 1985 | J11: =COUNTIFS('Sanitized Raw Data'!$H:$H,">="&$B11,'Sanitized Raw Data'!$H:$H,"<"&$B12,'Sanitized Raw Data'!$D:$D,"PayPal") -> 0 | K11: =SUMIFS('Sanitized Raw Data'!$C:$C,'Sanitized Raw Data'!$H:$H,">="&$B11,'Sanitized Raw Data'!$H:$H,"<"&$B12,'Sanitized Raw Data'!$D:$D,"PayPal") -> 0 | L11: =COUNTIFS('Sanitized Raw Data'!$H:$H,">="&$B11,'Sanitized Raw Data'!$H:$H,"<"&$B12,'Sanitized Raw Data'!$D:$D,"Personal Check")+COUNTIFS('Sanitized Raw Data'!$H:$H,">="&$B11,'Sanitized Raw Data'!$H:$H,"<"&$B12,'Sanitized Raw Data'!$D:$D,"ACH Grant Deposit") -> 0 | M11: =SUMIFS('Sanitized Raw Data'!$C:$C,'Sanitized Raw Data'!$H:$H,">="&$B11,'Sanitized Raw Data'!$H:$H,"<"&$B12,'Sanitized Raw Data'!$D:$D,"Personal Check")+SUMIFS('Sanitized Raw Data'!$C:$C,'Sanitized Raw Data'!$H:$H,">="&$B11,'Sanitized Raw Data'!$H:$H,"<"&$B12,'Sanitized Raw Data'!$D:$D,"ACH Grant Deposit") -> 0 | N11: =SUM(G11,M11,K11,I11,N10,E11) -> 34207.76 | O11: =SUM(F11,H11,J11,L11,D11) -> 23 | P11: =SUM(F11,L11,J11,H11,P10,D11) -> 418 | Q11: =N11/P11 -> 81.83674641 | R11: =(SUM(G11,M11,K11,I11,E11))/(SUM(F11,H11,J11,L11,D11)) -> 86.30434783 | S11: =N11/Sheet11!$A8 -> 4275.97 | T11: =(N11-N10)/C$3 -> 0.04951112441 | U11: =E11/(N11-N10) -> 0 | V11: =D11/O11 -> 0 | W11: =SUM(E$3:E11)/N11 -> 0 | X11: =SUM(D$3:D11)/O11 -> 0 | Y11: =G11/(N11-N10) -> 0 | Z11: =F11/O11 -> 0 | AA11: =SUM(G$3:G11)/N11 -> 0 | AB11: =SUM(F$3:F11)/O11 -> 0 | AC11: =I11/(N11-N10) -> 1 | AD11: =H11/O11 -> 1 | AE11: =SUM(I$3:I11)/N11 -> 0.6764143574 | AF11: =SUM(H$3:H11)/P11 -> 0.6578947368 | AG11: =K11/(N11-N10) -> 0 | AH11: =J11/O11 -> 0 | AI11: =SUM(K$3:K11)/N11 -> 0.1518088293 | AJ11: =SUM(J$3:J11)/P11 -> 0.2488038278 | AK11: =M11/(N11-N10) -> 0 | AL11: =L11/O11 -> 0 | AM11: =SUM(M$3:M11)/N11 -> 0.1717768132 | AN11: =SUM(L$3:L11)/P11 -> 0.09330143541 | AP11: Day 8 | AQ11: 2024-10-14 | AR11: 40465 | AS11: 0 | AT11: 0 | AU11: 0 | AV11: 0 | AW11: 95 | AX11: 8039.31 | AY11: 11 | AZ11: 379.24 | BA11: 0 | BB11: 0 | BC11: 35481.21 | BD11: 106 | BE11: 518 | BF11: 68.4965444 | BG11: 79.42028302 | BH11: 4435.15125 | BI11: 0.2080452243 | BJ11: 0 | BK11: 0 | BL11: 0 | BM11: 0 | BN11: 0 | BO11: 0 | BP11: 0 | BQ11: 0 | BR11: 0.9549518623 | BS11: 0.8962264151 | BT11: 0.7751753675 | BU11: 0.6872586873 | BV11: 0.04504813774 | BW11: 0.1037735849 | BX11: 0.08038170062 | BY11: 0.1930501931 | BZ11: 0 | CA11: 0 | CB11: 0.1444429319 | CC11: 0.1196911197 | CE11: Day 8 | CF11: 2024-04-23 | CG11: 39822 | DT11: Day 8 | DU11: 2023-10-09 | DV11: 48752 | DW11: 0 | DX11: 0 | DY11: 0 | DZ11: 0 | EA11: 11 | EB11: 799.79 | EC11: 4 | ED11: 149.89 | EE11: 1 | EF11: 25 | EG11: 28036.36 | EH11: 16 | EI11: 420 | EJ11: 66.7532381 | EK11: 60.9175 | EL11: 3504.545 | EM11: 0.01999261569 | EN11: 0 | EO11: 0 | EP11: 0.001783398415 | EQ11: 0.0625 | ER11: 0 | ES11: 0 | ET11: 0 | EU11: 0 | EV11: 0.8205667501 | EW11: 0.6875 | EX11: 0.6170583485 | EY11: 0.5166666667 | EZ11: 0.153783806 | FA11: 0.25 | FB11: 0.1854195766 | FC11: 0.3523809524 | FD11: 0.02564944392 | FE11: 0.0625 | FF11: 0.1957386765 | FG11: 0.1285714286 | FI11: Day 8 | FJ11: 2023-04-18 | FK11: 50252 | FL11: 0 | FM11: 0 | FN11: 0 | FO11: 0 | FP11: 17 | FQ11: 1100.47 | FR11: 2 | FS11: 69.79 | FT11: 0 | FU11: 0 | FV11: 30349.97 | FW11: 19 | FX11: 475 | FY11: 63.89467368 | FZ11: 61.59263158 | GA11: 3793.74625 | GB11: 0.02328782934 | GC11: 0 | GD11: 0 | GE11: 0.008237240432 | GF11: 0.1578947368 | GG11: 0 | GH11: 0 | GI11: 0 | GJ11: 0 | GK11: 0.9403636799 | GL11: 0.8947368421 | GM11: 0.6608042776 | GN11: 0.5831578947 | GO11: 0.05963632013 | GP11: 0.1052631579 | GQ11: 0.1302920563 | GR11: 0.2694736842 | GS11: 0 | GT11: 0 | GU11: 0.2006664257 | GV11: 0.1410526316
A12: Day 9 | B12: 2025-04-15 | C12: 40092 | D12: =COUNTIFS('Sanitized Raw Data'!$H:$H,">="&$B12,'Sanitized Raw Data'!$H:$H,"<"&$B13,'Sanitized Raw Data'!$D:$D,"Matching Grant") -> 0 | E12: =SUMIFS('Sanitized Raw Data'!$C:$C,'Sanitized Raw Data'!$H:$H,">="&$B12,'Sanitized Raw Data'!$H:$H,"<"&$B13,'Sanitized Raw Data'!$D:$D,"Matching Grant") -> 0 | F12: =COUNTIFS('Sanitized Raw Data'!$H:$H,">="&$B12,'Sanitized Raw Data'!$H:$H,"<"&$B13,'Sanitized Raw Data'!$D:$D,"Cash") -> 0 | G12: =SUMIFS('Sanitized Raw Data'!$C:$C,'Sanitized Raw Data'!$H:$H,">="&$B12,'Sanitized Raw Data'!$H:$H,"<"&$B13,'Sanitized Raw Data'!$D:$D,"Cash") -> 0 | H12: =COUNTIFS('Sanitized Raw Data'!$H:$H,">="&$B12,'Sanitized Raw Data'!$H:$H,"<"&$B13,'Sanitized Raw Data'!$D:$D,"CC") -> 78 | I12: =SUMIFS('Sanitized Raw Data'!$C:$C,'Sanitized Raw Data'!$H:$H,">="&$B12,'Sanitized Raw Data'!$H:$H,"<"&$B13,'Sanitized Raw Data'!$D:$D,"CC") -> 6234.01 | J12: =COUNTIFS('Sanitized Raw Data'!$H:$H,">="&$B12,'Sanitized Raw Data'!$H:$H,"<"&$B13,'Sanitized Raw Data'!$D:$D,"PayPal") -> 0 | K12: =SUMIFS('Sanitized Raw Data'!$C:$C,'Sanitized Raw Data'!$H:$H,">="&$B12,'Sanitized Raw Data'!$H:$H,"<"&$B13,'Sanitized Raw Data'!$D:$D,"PayPal") -> 0 | L12: =COUNTIFS('Sanitized Raw Data'!$H:$H,">="&$B12,'Sanitized Raw Data'!$H:$H,"<"&$B13,'Sanitized Raw Data'!$D:$D,"Personal Check")+COUNTIFS('Sanitized Raw Data'!$H:$H,">="&$B12,'Sanitized Raw Data'!$H:$H,"<"&$B13,'Sanitized Raw Data'!$D:$D,"ACH Grant Deposit") -> 0 | M12: =SUMIFS('Sanitized Raw Data'!$C:$C,'Sanitized Raw Data'!$H:$H,">="&$B12,'Sanitized Raw Data'!$H:$H,"<"&$B13,'Sanitized Raw Data'!$D:$D,"Personal Check")+SUMIFS('Sanitized Raw Data'!$C:$C,'Sanitized Raw Data'!$H:$H,">="&$B12,'Sanitized Raw Data'!$H:$H,"<"&$B13,'Sanitized Raw Data'!$D:$D,"ACH Grant Deposit") -> 0 | N12: =SUM(G12,M12,K12,I12,N11,E12) -> 40441.77 | O12: =SUM(F12,H12,J12,L12,D12) -> 78 | P12: =SUM(F12,L12,J12,H12,P11,D12) -> 496 | Q12: =N12/P12 -> 81.53582661 | R12: =(SUM(G12,M12,K12,I12,E12))/(SUM(F12,H12,J12,L12,D12)) -> 79.92320513 | S12: =N12/Sheet11!$A9 -> 4493.53 | T12: =(N12-N11)/C$3 -> 0.155492617 | U12: =E12/(N12-N11) -> 0 | V12: =D12/O12 -> 0 | W12: =SUM(E$3:E12)/N12 -> 0 | X12: =SUM(D$3:D12)/O12 -> 0 | Y12: =G12/(N12-N11) -> 0 | Z12: =F12/O12 -> 0 | AA12: =SUM(G$3:G12)/N12 -> 0 | AB12: =SUM(F$3:F12)/O12 -> 0 | AC12: =I12/(N12-N11) -> 1 | AD12: =H12/O12 -> 1 | AE12: =SUM(I$3:I12)/N12 -> 0.7262943734 | AF12: =SUM(H$3:H12)/P12 -> 0.7116935484 | AG12: =K12/(N12-N11) -> 0 | AH12: =J12/O12 -> 0 | AI12: =SUM(K$3:K12)/N12 -> 0.1284078318 | AJ12: =SUM(J$3:J12)/P12 -> 0.2096774194 | AK12: =M12/(N12-N11) -> 0 | AL12: =L12/O12 -> 0 | AM12: =SUM(M$3:M12)/N12 -> 0.1452977948 | AN12: =SUM(L$3:L12)/P12 -> 0.07862903226 | AP12: Day 9 | AQ12: 2024-10-15 | AR12: 40465 | AS12: 0 | AT12: 0 | AU12: 0 | AV12: 0 | AW12: 23 | AX12: 2537.77 | AY12: 3 | AZ12: 100 | BA12: 0 | BB12: 0 | BC12: 38118.98 | BD12: 26 | BE12: 544 | BF12: 70.07165441 | BG12: 101.4526923 | BH12: 4235.442222 | BI12: 0.06518645743 | BJ12: 0 | BK12: 0 | BL12: 0 | BM12: 0 | BN12: 0 | BO12: 0 | BP12: 0 | BQ12: 0 | BR12: 0.962089189 | BS12: 0.8846153846 | BT12: 0.788109493 | BU12: 0.6966911765 | BV12: 0.03791081103 | BW12: 0.1153846154 | BX12: 0.07744278572 | BY12: 0.1893382353 | BZ12: 0 | CA12: 0 | CB12: 0.1344477213 | CC12: 0.1139705882 | CE12: Day 9 | CF12: 2024-04-24 | CG12: 39822 | DT12: Day 9 | DU12: 2023-10-10 | DV12: 48752 | DW12: 0 | DX12: 0 | DY12: 0 | DZ12: 0 | EA12: 92 | EB12: 6860.3 | EC12: 18 | ED12: 892 | EE12: 4 | EF12: 318 | EG12: 36106.66 | EH12: 114 | EI12: 534 | EJ12: 67.61546816 | EK12: 70.79210526 | EL12: 4011.851111 | EM12: 0.1655378241 | EN12: 0 | EO12: 0 | EP12: 0.001384786075 | EQ12: 0.008771929825 | ER12: 0 | ES12: 0 | ET12: 0 | EU12: 0 | EV12: 0.8500675316 | EW12: 0.8070175439 | EX12: 0.6691388791 | EY12: 0.5786516854 | EZ12: 0.1105287288 | FA12: 0.1578947368 | FB12: 0.1686805149 | FC12: 0.3108614232 | FD12: 0.03940373964 | FE12: 0.0350877193 | FF12: 0.1607958199 | FG12: 0.1086142322 | FI12: Day 9 | FJ12: 2023-04-19 | FK12: 50252 | FL12: 0 | FM12: 0 | FN12: 0 | FO12: 0 | FP12: 85 | FQ12: 6611.55 | FR12: 10 | FS12: 614 | FT12: 3 | FU12: 183 | FV12: 37758.52 | FW12: 98 | FX12: 573 | FY12: 65.89619546 | FZ12: 75.59744898 | GA12: 4195.391111 | GB12: 0.1474279631 | GC12: 0 | GD12: 0 | GE12: 0.006621022222 | GF12: 0.0306122449 | GG12: 0 | GH12: 0 | GI12: 0 | GJ12: 0 | GK12: 0.892421594 | GL12: 0.8673469388 | GM12: 0.7062496094 | GN12: 0.6317626527 | GO12: 0.08287721619 | GP12: 0.1020408163 | GQ12: 0.1209888523 | GR12: 0.2408376963 | GS12: 0.02470118984 | GT12: 0.0306122449 | GU12: 0.1661405161 | GV12: 0.1221640489
A13: Day 10 | B13: 2025-04-16 | C13: 40092 | AP13: Day 10 | AQ13: 2024-10-16 | AR13: 40465 | AS13: 0 | AT13: 0 | AU13: 0 | AV13: 0 | AW13: 32 | AX13: 2250.82 | AY13: 2 | AZ13: 39.79 | BA13: 0 | BB13: 0 | BC13: 40409.59 | BD13: 34 | BE13: 578 | BF13: 69.91278547 | BG13: 67.37088235 | BH13: 4040.959 | BI13: 0.0566071914 | BJ13: 0 | BK13: 0 | BL13: 0 | BM13: 0 | BN13: 0 | BO13: 0 | BP13: 0 | BQ13: 0 | BR13: 0.9826290813 | BS13: 0.9411764706 | BT13: 0.7991357992 | BU13: 0.7110726644 | BV13: 0.01737091866 | BW13: 0.05882352941 | BX13: 0.07403762325 | BY13: 0.1816608997 | BZ13: 0 | CA13: 0 | CB13: 0.1268265776 | CC13: 0.107266436 | CE13: Day 10 | CF13: 2024-04-25 | CG13: 39822 | DT13: Day 10 | DU13: 2023-10-11 | DV13: 48752 | DW13: 0 | DX13: 0 | DY13: 0 | DZ13: 0 | EA13: 15 | EB13: 1015 | EC13: 3 | ED13: 79.79 | EE13: 2 | EF13: 208 | EG13: 37409.45 | EH13: 20 | EI13: 554 | EJ13: 67.52608303 | EK13: 65.1395 | EL13: 3740.945 | EM13: 0.02672280112 | EN13: 0 | EO13: 0 | EP13: 0.001336560682 | EQ13: 0.05 | ER13: 0 | ES13: 0 | ET13: 0 | EU13: 0 | EV13: 0.7790971684 | EW13: 0.75 | EX13: 0.6729681939 | EY13: 0.5848375451 | EZ13: 0.06124548085 | FA13: 0.15 | FB13: 0.1649390729 | FC13: 0.3050541516 | FD13: 0.1596573508 | FE13: 0.1 | FF13: 0.1607561726 | FG13: 0.1083032491 | FI13: Day 10 | FJ13: 2023-04-20 | FK13: 50252 | FL13: 0 | FM13: 0 | FN13: 0 | FO13: 0 | FP13: 23 | FQ13: 2011.79 | FR13: 3 | FS13: 350 | FT13: 5 | FU13: 731 | FV13: 40851.31 | FW13: 31 | FX13: 604 | FY13: 67.63461921 | FZ13: 99.76741935 | GA13: 4085.131 | GB13: 0.06154561012 | GC13: 0 | GD13: 0 | GE13: 0.006119754789 | GF13: 0.09677419355 | GG13: 0 | GH13: 0 | GI13: 0 | GJ13: 0 | GK13: 0.6504774007 | GL13: 0.7419354839 | GM13: 0.702027181 | GN13: 0.6374172185 | GO13: 0.113166429 | GP13: 0.09677419355 | GQ13: 0.1203966287 | GR13: 0.2334437086 | GS13: 0.2363561703 | GT13: 0.1612903226 | GU13: 0.1714564355 | GV13: 0.1241721854
A14: Day 11 | B14: 2025-04-17 | C14: 40092 | AP14: Day 11 | AQ14: 2024-10-17 | AR14: 40465 | AS14: 0 | AT14: 0 | AU14: 0 | AV14: 0 | AW14: 2 | AX14: 300 | AY14: 0 | AZ14: 0 | BA14: 0 | BB14: 0 | BC14: 40709.59 | BD14: 2 | BE14: 580 | BF14: 70.18894828 | BG14: 150 | BH14: 3700.871818 | BI14: 0.007413814408 | BJ14: 0 | BK14: 0 | BL14: 0 | BM14: 0 | BN14: 0 | BO14: 0 | BP14: 0 | BQ14: 0 | BR14: 1 | BS14: 1 | BT14: 0.8006160219 | BU14: 0.7120689655 | BV14: 0 | BW14: 0 | BX14: 0.07349201994 | BY14: 0.1810344828 | BZ14: 0 | CA14: 0 | CB14: 0.1258919581 | CC14: 0.1068965517 | CE14: Day 11 | CF14: 2024-04-26 | CG14: 39822 | DT14: Day 11 | DU14: 2023-10-12 | DV14: 48752 | DW14: 0 | DX14: 0 | DY14: 0 | DZ14: 0 | EA14: 7 | EB14: 403 | EC14: 0 | ED14: 0 | EE14: 0 | EF14: 0 | EG14: 37812.45 | EH14: 7 | EI14: 561 | EJ14: 67.40187166 | EK14: 57.57142857 | EL14: 3437.495455 | EM14: 0.008266327535 | EN14: 0 | EO14: 0 | EP14: 0.001322315798 | EQ14: 0.1428571429 | ER14: 0 | ES14: 0 | ET14: 0 | EU14: 0 | EV14: 1 | EW14: 1 | EX14: 0.6764536548 | EY14: 0.5900178253 | EZ14: 0 | FA14: 0 | FB14: 0.1631811745 | FC14: 0.3012477718 | FD14: 0 | FE14: 0 | FF14: 0.1590428549 | FG14: 0.1069518717 | FI14: Day 11 | FJ14: 2023-04-21 | FK14: 50252 | FL14: 0 | FM14: 0 | FN14: 0 | FO14: 0 | FP14: 9 | FQ14: 644.54 | FR14: 3 | FS14: 200 | FT14: 0 | FU14: 0 | FV14: 41695.85 | FW14: 12 | FX14: 616 | FY14: 67.68806818 | FZ14: 70.37833333 | GA14: 3790.531818 | GB14: 0.01680609727 | GC14: 0 | GD14: 0 | GE14: 0.005995800541 | GF14: 0.25 | GG14: 0 | GH14: 0 | GI14: 0 | GJ14: 0 | GK14: 0.7631846923 | GL14: 0.75 | GM14: 0.7032659126 | GN14: 0.6396103896 | GO14: 0.2368153077 | GP14: 0.25 | GQ14: 0.1227546626 | GR14: 0.2337662338 | GS14: 0 | GT14: 0 | GU14: 0.1679836243 | GV14: 0.1217532468
A15: Day 12 | B15: 2025-04-18 | C15: 40092 | AP15: Day 12 | AQ15: 2024-10-18 | AR15: 40465 | CE15: Day 12 | CF15: 2024-04-27 | CG15: 39822 | DT15: Day 12 | DU15: 2023-10-13 | DV15: 48752 | DW15: 0 | DX15: 0 | DY15: 0 | DZ15: 0 | EA15: 8 | EB15: 544.89 | EC15: 0 | ED15: 0 | EE15: 0 | EF15: 0 | EG15: 38357.34 | EH15: 8 | EI15: 569 | EJ15: 67.41184534 | EK15: 68.11125 | EL15: 3196.445 | EM15: 0.01117677223 | EN15: 0 | EO15: 0 | EP15: 0.001303531475 | EQ15: 0.125 | ER15: 0 | ES15: 0 | ET15: 0 | EU15: 0 | EV15: 1 | EW15: 1 | EX15: 0.681049833 | EY15: 0.5957820738 | EZ15: 0 | FA15: 0 | FB15: 0.1608630838 | FC15: 0.2970123023 | FD15: 0 | FE15: 0 | FF15: 0.1567835517 | FG15: 0.1054481547 | FI15: Day 12 | FJ15: 2023-04-22 | FK15: 50252 | FL15: 0 | FM15: 0 | FN15: 0 | FO15: 0 | FP15: 9 | FQ15: 809 | FR15: 0 | FS15: 0 | FT15: 0 | FU15: 0 | FV15: 42504.85 | FW15: 9 | FX15: 625 | FY15: 68.00776 | FZ15: 89.88888889 | GA15: 3542.070833 | GB15: 0.01609886174 | GC15: 0 | GD15: 0 | GE15: 0.005881681737 | GF15: 0.3333333333 | GG15: 0 | GH15: 0 | GI15: 0 | GJ15: 0 | GK15: 1 | GL15: 1 | GM15: 0.7089136887 | GN15: 0.6448 | GO15: 0 | GP15: 0 | GQ15: 0.1204182582 | GR15: 0.2304 | GS15: 0 | GT15: 0 | GU15: 0.1647863714 | GV15: 0.12
A16: Day 13 | B16: 2025-04-19 | C16: 40092 | AP16: Day 13 | AQ16: 2024-10-19 | AR16: 40465 | CE16: Day 13 | CF16: 2024-04-28 | CG16: 39822 | DT16: Day 13 | DU16: 2023-10-14 | DV16: 48752 | DW16: 0 | DX16: 0 | DY16: 0 | DZ16: 0 | EA16: 4 | EB16: 475 | EC16: 0 | ED16: 0 | EE16: 0 | EF16: 0 | EG16: 38832.34 | EH16: 4 | EI16: 573 | EJ16: 67.77022688 | EK16: 118.75 | EL16: 2987.103077 | EM16: 0.009743190023 | EN16: 0 | EO16: 0 | EP16: 0.001287586584 | EQ16: 0.25 | ER16: 0 | ES16: 0 | ET16: 0 | EU16: 0 | EV16: 1 | EW16: 1 | EX16: 0.6849512545 | EY16: 0.5986038394 | EZ16: 0 | FA16: 0 | FB16: 0.1588953949 | FC16: 0.294938918 | FD16: 0 | FE16: 0 | FF16: 0.1548657639 | FG16: 0.1047120419 | FI16: Day 13 | FJ16: 2023-04-23 | FK16: 50252 | FL16: 0 | FM16: 0 | FN16: 0 | FO16: 0 | FP16: 10 | FQ16: 793.79 | FR16: 0 | FS16: 0 | FT16: 0 | FU16: 0 | FV16: 43298.64 | FW16: 10 | FX16: 635 | FY16: 68.18683465 | FZ16: 79.379 | GA16: 3330.664615 | GB16: 0.01579618722 | GC16: 0 | GD16: 0 | GE16: 0.005773853405 | GF16: 0.3 | GG16: 0 | GH16: 0 | GI16: 0 | GJ16: 0 | GK16: 1 | GL16: 1 | GM16: 0.7142501473 | GN16: 0.6503937008 | GO16: 0 | GP16: 0 | GQ16: 0.1182106413 | GR16: 0.2267716535 | GS16: 0 | GT16: 0 | GU16: 0.161765358 | GV16: 0.1181102362
A17: Day 14 | B17: 2025-04-20 | C17: 40092 | AP17: Day 14 | AQ17: 2024-10-20 | AR17: 40465 | CE17: Day 14 | CF17: 2024-04-29 | CG17: 39822 | DT17: Day 14 | DU17: 2023-10-15 | DV17: 48752 | DW17: 0 | DX17: 0 | DY17: 0 | DZ17: 0 | EA17: 5 | EB17: 450 | EC17: 0 | ED17: 0 | EE17: 0 | EF17: 0 | EG17: 39282.34 | EH17: 5 | EI17: 578 | EJ17: 67.96252595 | EK17: 90 | EL17: 2805.881429 | EM17: 0.009230390548 | EN17: 0 | EO17: 0 | EP17: 0.001272836598 | EQ17: 0.2 | ER17: 0 | ES17: 0 | ET17: 0 | EU17: 0 | EV17: 1 | EW17: 1 | EX17: 0.6885603047 | EY17: 0.6020761246 | EZ17: 0 | FA17: 0 | FB17: 0.1570751641 | FC17: 0.2923875433 | FD17: 0 | FE17: 0 | FF17: 0.1530916946 | FG17: 0.1038062284 | FI17: Day 14 | FJ17: 2023-04-24 | FK17: 50252 | FL17: 0 | FM17: 0 | FN17: 0 | FO17: 0 | FP17: 36 | FQ17: 2539.98 | FR17: 0 | FS17: 0 | FT17: 1 | FU17: 64 | FV17: 45902.62 | FW17: 37 | FX17: 672 | FY17: 68.30747024 | FZ17: 70.37783784 | GA17: 3278.758571 | GB17: 0.05181843509 | GC17: 0 | GD17: 0 | GE17: 0.005446312215 | GF17: 0.08108108108 | GG17: 0 | GH17: 0 | GI17: 0 | GJ17: 0 | GK17: 0.9754222383 | GL17: 0.972972973 | GM17: 0.7290660097 | GN17: 0.6681547619 | GO17: 0 | GP17: 0 | GQ17: 0.1115047464 | GR17: 0.2142857143 | GS17: 0.02457776173 | GT17: 0.02702702703 | GU17: 0.1539829317 | GV17: 0.1130952381
A18: Day 15 | B18: 2025-04-21 | C18: 40092 | AP18: Day 15 | AQ18: 2024-10-21 | AR18: 40465 | CE18: Day 15 | CF18: 2024-04-30 | CG18: 39822 | DT18: Day 15 | DU18: 2023-10-16 | DV18: 48752 | DW18: 0 | DX18: 0 | DY18: 0 | DZ18: 0 | EA18: 8 | EB18: 679 | EC18: 2 | ED18: 200 | EE18: 0 | EF18: 0 | EG18: 40161.34 | EH18: 10 | EI18: 588 | EJ18: 68.30159864 | EK18: 87.9 | EL18: 2677.422667 | EM18: 0.01803002954 | EN18: 0 | EO18: 0 | EP18: 0.00124497838 | EQ18: 0.1 | ER18: 0 | ES18: 0 | ET18: 0 | EU18: 0 | EV18: 0.7724687144 | EW18: 0.8 | EX18: 0.6903967846 | EY18: 0.6054421769 | EZ18: 0.2275312856 | FA18: 0.2 | FB18: 0.1586172175 | FC18: 0.2908163265 | FD18: 0 | FE18: 0 | FF18: 0.1497410196 | FG18: 0.1020408163 | FI18: Day 15
A19: Day 16 | B19: 2025-04-22 | C19: 40092 | AP19: Day 16 | AQ19: 2024-10-22 | AR19: 40465 | CE19: Day 16 | CF19: 2024-05-01 | CG19: 39822 | DT19: Day 16 | DU19: 2023-10-17 | DV19: 48752 | DW19: 0 | DX19: 0 | DY19: 0 | DZ19: 0 | EA19: 64 | EB19: 5028.43 | EC19: 22 | ED19: 3106.56 | EE19: 0 | EF19: 0 | EG19: 48296.33 | EH19: 86 | EI19: 674 | EJ19: 71.65627596 | EK19: 94.59290698 | EL19: 3018.520625 | EM19: 0.166864744 | EN19: 0 | EO19: 0 | EP19: 0.001035275351 | EQ19: 0.01162790698 | ER19: 0 | ES19: 0 | ET19: 0 | EU19: 0 | EV19: 0.6181236855 | EW19: 0.7441860465 | EX19: 0.6782231693 | EY19: 0.6231454006 | EZ19: 0.3818763145 | FA19: 0.2558139535 | FB19: 0.1962227772 | FC19: 0.2863501484 | FD19: 0 | FE19: 0 | FF19: 0.1245187781 | FG19: 0.08902077151 | FI19: Day 16
A20: Day 17 | B20: 2025-04-23 | C20: 40092 | AP20: Day 17 | AQ20: 2024-10-23 | AR20: 40465 | CE20: Day 17 | CF20: 2024-05-02 | CG20: 39822 | DT20: Day 17 | DU20: 2023-10-18 | DV20: 48752 | DW20: 0 | DX20: 0 | DY20: 0 | DZ20: 0 | EA20: 25 | EB20: 1275.74 | EC20: 0 | ED20: 0 | EE20: 0 | EF20: 0 | EG20: 49572.07 | EH20: 25 | EI20: 699 | EJ20: 70.91855508 | EK20: 51.0296 | EL20: 2916.004118 | EM20: 0.02616795208 | EN20: 0 | EO20: 0 | EP20: 0.001008632482 | EQ20: 0.04 | ER20: 0 | ES20: 0 | ET20: 0 | EU20: 0 | EV20: 1 | EW20: 1 | EX20: 0.6865041141 | EY20: 0.6366237482 | EZ20: 0 | FA20: 0 | FB20: 0.191172973 | FC20: 0.2761087268 | FD20: 0 | FE20: 0 | FF20: 0.1213142804 | FG20: 0.08583690987 | FI20: Day 17
A21: Day 18 | B21: 2025-04-24 | C21: 40092 | AP21: Day 18 | AQ21: 2024-10-24 | AR21: 40465 | CE21: Day 18 | CF21: 2024-05-03 | CG21: 39822 | DT21: Day 18 | DU21: 2023-10-19 | DV21: 48752 | FI21: Day 18
A22: Day 19 | B22: 2025-04-25 | C22: 40092 | AP22: Day 19 | AQ22: 2024-10-25 | AR22: 40465 | CE22: Day 19 | CF22: 2024-05-04 | CG22: 39822 | DT22: Day 19 | DU22: 2023-10-20 | DV22: 48752 | FI22: Day 19
A23: Day 20 | B23: 2025-04-26 | C23: 40092 | AP23: Day 20 | AQ23: 2024-10-26 | AR23: 40465 | CE23: Day 20 | CF23: 2024-05-05 | CG23: 39822 | DT23: Day 20 | DU23: 2023-10-21 | DV23: 48752 | FI23: Day 20
A24: Day 21 | B24: 2025-04-27 | C24: 40092 | AP24: Day 21 | AQ24: 2024-10-27 | AR24: 40465 | CE24: Day 21 | CF24: 2024-05-06 | CG24: 39822 | DT24: Day 21 | FI24: Day 21
A25: Day 22 | B25: 2025-04-28 | C25: 40092 | AP25: Day 22 | AQ25: 2024-10-28 | AR25: 40465 | CE25: Day 22 | CF25: 2024-05-07 | CG25: 39822 | DT25: Day 22 | FI25: Day 22
A26: Day 23 | B26: 2025-04-29 | C26: 40092 | AP26: Day 23 | AQ26: 2024-10-29 | AR26: 40465 | CE26: Day 23 | CF26: 2024-05-08 | CG26: 39822 | DT26: Day 23 | FI26: Day 23
A27: Day 24 | B27: 2025-04-30 | C27: 40092 | AP27: Day 24 | AQ27: 2024-10-30 | AR27: 40465 | CE27: Day 24 | CF27: 2024-05-09 | CG27: 39822 | DT27: Day 24 | FI27: Day 24
A28: Day 25 | B28: 2025-05-01 | C28: 40092 | AP28: Day 25 | AQ28: 2024-10-31 | AR28: 40465 | CE28: Day 25 | CF28: 2024-05-10 | CG28: 39822 | DT28: Day 25 | FI28: Day 25
A29: Day 26 | B29: 2025-05-02 | C29: 40092 | AP29: Day 26 | AQ29: 2024-11-01 | AR29: 40465 | CE29: Day 26 | CF29: 2024-05-11 | CG29: 39822 | DT29: Day 26 | FI29: Day 26
A30: Day 27 | B30: 2025-05-03 | C30: 40092 | AP30: Day 27 | AQ30: 2024-11-02 | AR30: 40465 | CE30: Day 27 | CF30: 2024-05-12 | CG30: 39822 | DT30: Day 27 | FI30: Day 27
A31: Day 28 | B31: 2025-05-04 | C31: 40092 | AP31: Day 28 | AQ31: 2024-11-03 | AR31: 40465 | CE31: Day 28 | CF31: 2024-05-13 | CG31: 39822 | DT31: Day 28 | FI31: Day 28
A32: Day 29 | B32: 2025-05-05 | C32: 40092 | AP32: Day 29 | AQ32: 2024-11-04 | AR32: 40465 | CE32: Day 29 | CF32: 2024-05-14 | CG32: 39822 | DT32: Day 29 | FI32: Day 29
A33: Day 30 | B33: 2025-05-06 | C33: 40092 | AP33: Day 30 | AQ33: 2024-11-05 | AR33: 40465 | CE33: Day 30 | CF33: 2024-05-15 | CG33: 39822 | DT33: Day 30 | FI33: Day 30
A34: Day 31 | B34: 2025-05-07 | C34: 40092 | AP34: Day 31 | AQ34: 2024-11-06 | AR34: 40465 | CE34: Day 31 | CF34: 2024-05-16 | CG34: 39822 | DT34: Day 31 | FI34: Day 31
A35: Day 32 | B35: 2025-05-08 | C35: 40092 | AP35: Day 32 | AQ35: 2024-11-07 | AR35: 40465 | CE35: Day 32 | CF35: 2024-05-17 | CG35: 39822 | DT35: Day 32 | FI35: Day 32
A36: Day 33 | B36: 2025-05-09 | C36: 40092 | AP36: Day 33 | AQ36: 2024-11-08 | AR36: 40465 | CE36: Day 33 | CF36: 2024-05-18 | CG36: 39822 | DT36: Day 33 | FI36: Day 33
A37: Day 34 | B37: 2025-05-10 | C37: 40092 | AP37: Day 34 | AQ37: 2024-11-09 | AR37: 40465 | CE37: Day 34 | CF37: 2024-05-19 | CG37: 39822 | DT37: Day 34 | FI37: Day 34
A38: Day 35 | B38: 2025-05-11 | C38: 40092 | AP38: Day 35 | AQ38: 2024-11-10 | AR38: 40465 | CE38: Day 35 | CF38: 2024-05-20 | CG38: 39822 | DT38: Day 35 | FI38: Day 35
A39: Day 36 | B39: 2025-05-12 | C39: 40092 | AP39: Day 36 | AQ39: 2024-11-11 | AR39: 40465 | CE39: Day 36 | CF39: 2024-05-21 | CG39: 39822 | DT39: Day 36 | FI39: Day 36
A40: Day 37 | B40: 2025-05-13 | C40: 40092 | AP40: Day 37 | AQ40: 2024-11-12 | AR40: 40465 | CE40: Day 37 | CF40: 2024-05-22 | CG40: 39822 | DT40: Day 37 | FI40: Day 37
A41: Day 38 | B41: 2025-05-14 | C41: 40092 | AP41: Day 38 | AQ41: 2024-11-13 | AR41: 40465 | CE41: Day 38 | CF41: 2024-05-23 | CG41: 39822 | DT41: Day 38 | FI41: Day 38
A42: Day 39 | B42: 2025-05-15 | C42: 40092 | AP42: Day 39 | AQ42: 2024-11-14 | AR42: 40465 | CE42: Day 39 | CF42: 2024-05-24 | CG42: 39822 | DT42: Day 39 | FI42: Day 39
A43: Day 40 | B43: 2025-05-16 | C43: 40092 | AP43: Day 40 | AQ43: 2024-11-15 | AR43: 40465 | CE43: Day 40 | CF43: 2024-05-25 | CG43: 39822 | DT43: Day 40 | FI43: Day 40
A44: Day 41 | B44: 2025-05-17 | C44: 40092 | AP44: Day 41 | AQ44: 2024-11-16 | AR44: 40465 | CE44: Day 41 | CF44: 2024-05-26 | CG44: 39822 | DT44: Day 41 | FI44: Day 41
A45: Day 42 | B45: 2025-05-18 | C45: 40092 | AP45: Day 42 | AQ45: 2024-11-17 | AR45: 40465 | CE45: Day 42 | CF45: 2024-05-27 | CG45: 39822 | DT45: Day 42 | FI45: Day 42
A46: Day 43 | B46: 2025-05-19 | C46: 40092 | AP46: Day 43 | AQ46: 2024-11-18 | AR46: 40465 | CE46: Day 43 | CF46: 2024-05-28 | CG46: 39822 | DT46: Day 43 | FI46: Day 43
F47: =SUM(F3:F46) -> 0 | G47: =SUM(G3:G46) -> 0 | H47: 353 | I47: 29372.63 | J47: 104 | K47: 5193.04 | L47: 39 | M47: 5876.1 | N47: =LARGE(N3:N46,1) -> 40441.77 | AR47: 40465 | AU47: 0 | AV47: 0 | AW47: 413 | AX47: 32592.75 | AY47: 105 | AZ47: 2991.83 | BA47: 62 | BB47: 5125.01 | BC47: 40709.59 | CG47: 39822 | CJ47: 0 | CK47: 0 | CL47: 373 | CM47: 28708.65 | CN47: 116 | CO47: 3447.11 | CP47: 60 | CQ47: 7739 | CR47: 39894.76 | DT47: Day 44 | DV47: 48752 | DY47: =SUM(DY3:DY46) -> 0 | DZ47: =SUM(DZ3:DZ46) -> 0 | EA47: 445 | EB47: 34031.43 | EC47: 193 | ED47: 9476.84 | EE47: 60 | EF47: 6013.8 | EG47: =LARGE(EG3:EG46,1) -> 49572.07 | FI47: Day 44 | FK47: 50252 | FN47: 0 | FO47: 0 | FP47: 449 | FQ47: 33466.04 | FR47: 144 | FS47: 5118.36 | FT47: 76 | FU47: 7068.22 | FV47: 45902.62

Sheet Sanitized Raw Data
A1: donate_id | B1: donate_invoice | C1: donate_amount | D1: donate_method | E1: donate_affiliation | F1: donate_classyear | G1: donate_isthanked | H1: donate_transac_date | I1: donate_create_date | J1: donate_mod_date | K1: donate_num_recurring | L1: donate_pledge
A2: 61359 | B2: EF57-000001 | C2: 64 | D2: Personal Check | E2: 1 | F2: 1964 | G2: N | H2: 2024-10-12 | I2: 2024-10-19T02:04:03 | J2: 2024-10-19T02:04:03 | K2: 1 | L2: None. Donation by check.
A3: 61360 | B3: EF57-000002 | C3: 40 | D3: Personal Check | E3: 1 | F3: 1968 | G3: N | H3: 2024-10-09 | I3: 2024-10-19T02:05:54 | J3: 2024-10-19T02:05:54 | K3: 1 | L3: None. Donation by check.
A4: 61361 | B4: EF57-000003 | C4: 50 | D4: Personal Check | E4: 1 | F4: 1968 | G4: N | H4: 2024-10-16 | I4: 2024-10-19T02:07:29 | J4: 2024-10-19T02:07:29 | K4: 1 | L4: None. Donation by check.
A5: 61362 | B5: EF57-000004 | C5: 50 | D5: Personal Check | E5: 1 | F5: 1975 | G5: N | H5: 2024-10-08 | I5: 2024-10-19T02:09:04 | J5: 2024-10-19T02:10:28 | K5: 1 | L5: None. Donation by check.
A6: 61363 | B6: EF57-000005 | C6: 50 | D6: Personal Check | E6: 1 | F6: 1960 | G6: N | H6: 2024-10-16 | I6: 2024-10-28T14:09:52 | J6: 2024-10-28T14:09:52 | K6: 1 | L6: None. Donation by check.
A7: 61364 | B7: EF57-000006 | C7: 50 | D7: Personal Check | E7: 1 | F7: 1960 | G7: N | H7: 2024-10-13 | I7: 2024-10-28T14:11:19 | J7: 2024-10-28T14:11:19 | K7: 1 | L7: None. Donation by check.
A8: 61365 | B8: EF57-000007 | C8: 100 | D8: Personal Check | E8: 1 | F8: 1963 | G8: N | H8: 2024-10-14 | I8: 2024-10-28T14:13:45 | J8: 2024-10-28T14:13:45 | K8: 1 | L8: None. Donation by check.
A9: 61366 | B9: EF57-000008 | C9: 64 | D9: Personal Check | E9: 1 | F9: 1964 | G9: N | H9: 2024-10-14 | I9: 2024-10-28T14:15:34 | J9: 2024-10-28T14:15:34 | K9: 1 | L9: None. Donation by check.
A10: 61367 | B10: EF57-000009 | C10: 250 | D10: Personal Check | E10: 1 | F10: 1968 | G10: N | H10: 2024-10-16 | I10: 2024-10-28T14:17:05 | J10: 2024-10-28T14:17:05 | K10: 1 | L10: None. Donation by check.
A11: 61368 | B11: EF57-000010 | C11: 128 | D11: Personal Check | E11: 1 | F11: 1964 | G11: N | H11: 2024-10-20 | I11: 2024-10-28T14:18:21 | J11: 2024-10-28T14:18:21 | K11: 1 | L11: None. Donation by check.
A12: 61369 | B12: EF57-000011 | C12: 500 | D12: Personal Check | E12: 1 | F12: 1959 | G12: N | H12: 2024-10-18 | I12: 2024-10-28T14:20:26 | J12: 2024-10-28T14:20:26 | K12: 1 | L12: None. Donation by check.
A13: 61370 | B13: EF57-000012 | C13: 100 | D13: Personal Check | E13: 1 | F13: 1977 | G13: N | H13: 2024-10-17 | I13: 2024-10-28T14:22:33 | J13: 2024-10-28T14:22:33 | K13: 1 | L13: None. Donation by check.
A14: 61371 | B14: EF57-000013 | C14: 50 | D14: Personal Check | E14: 1 | F14: 1955 | G14: N | H14: 2024-10-15 | I14: 2024-10-28T14:24:57 | J14: 2024-10-28T14:24:57 | K14: 1 | L14: None. Donation by check.
A15: 61372 | B15: EF57-000014 | C15: 50 | D15: Personal Check | E15: 1 | F15: 1958 | G15: N | H15: 2024-10-07 | I15: 2024-10-28T14:26:25 | J15: 2024-10-28T14:26:25 | K15: 1 | L15: None. Donation by check.
A16: 61373 | B16: EF57-000015 | C16: 35 | D16: Personal Check | E16: 1 | F16: 1969 | G16: N | H16: 2024-10-14 | I16: 2024-10-28T14:28:04 | J16: 2024-10-28T14:28:04 | K16: 1 | L16: None. Donation by check.
A17: 61374 | B17: EF57-000016 | C17: 50 | D17: Personal Check | E17: 1 | F17: 1977 | G17: N | H17: 2024-10-15 | I17: 2024-10-28T14:29:54 | J17: 2024-10-28T14:29:54 | K17: 1 | L17: None. Donation by check.
A18: 61375 | B18: EF57-000017 | C18: 64 | D18: Personal Check | E18: 1 | F18: 1964 | G18: N | H18: 2024-10-16 | I18: 2024-10-28T14:31:33 | J18: 2024-10-28T14:31:33 | K18: 1 | L18: None. Donation by check.
A19: 61376 | B19: EF57-000018 | C19: 40 | D19: Personal Check | E19: 1 | F19: 1968 | G19: N | H19: 2024-10-11 | I19: 2024-10-28T14:33:39 | J19: 2024-10-28T14:33:39 | K19: 1 | L19: None. Donation by check.
A20: 61377 | B20: EF57-000019 | C20: 50 | D20: Personal Check | E20: 1 | F20: 1960 | G20: N | H20: 2024-10-19 | I20: 2024-10-28T14:35:32 | J20: 2024-10-28T14:35:32 | K20: 1 | L20: None. Donation by check.
A21: 61378 | B21: EF57-000020 | C21: 100 | D21: Personal Check | E21: 1 | F21: 1968 | G21: N | H21: 2024-10-15 | I21: 2024-10-28T14:37:42 | J21: 2024-10-28T14:37:42 | K21: 1 | L21: None. Donation by check.
A22: 61379 | B22: EF57-000021 | C22: 100 | D22: Personal Check | E22: 1 | F22: 1964 | G22: N | H22: 2024-10-14 | I22: 2024-10-28T14:40:32 | J22: 2024-10-28T14:40:32 | K22: 1 | L22: None. Donation by check.
A23: 61380 | B23: EF57-000022 | C23: 100 | D23: Personal Check | E23: 1 | F23: 1986 | G23: N | H23: 2024-10-16 | I23: 2024-10-28T14:42:05 | J23: 2024-10-28T14:42:05 | K23: 1 | L23: None. Donation by check.
A24: 61381 | B24: EF57-000023 | C24: 200 | D24: Personal Check | E24: 1 | F24: 1969 | G24: N | H24: 2024-10-15 | I24: 2024-10-28T14:44:10 | J24: 2024-10-28T14:44:10 | K24: 1 | L24: None. Donation by check.
A25: 61382 | B25: EF57-000024 | C25: 50 | D25: Personal Check | E25: 1 | F25: 1968 | G25: N | H25: 2024-10-15 | I25: 2024-11-04T14:52:07 | J25: 2024-11-04T14:52:07 | K25: 1 | L25: None. Donation by check.
A26: 61383 | B26: EF57-000025 | C26: 200 | D26: Personal Check | E26: 1 | F26: 1964 | G26: N | H26: 2024-10-19 | I26: 2024-11-04T14:53:52 | J26: 2024-11-04T14:53:52 | K26: 1 | L26: None. Donation by check.
A27: 61384 | B27: EF57-000026 | C27: 64 | D27: Personal Check | E27: 5 | F27: 1964 | G27: N | H27: 2024-10-13 | I27: 2024-11-04T14:56:20 | J27: 2024-11-04T14:56:20 | K27: 1 | L27: None. Donation by check.
A28: 61385 | B28: EF57-000027 | C28: 84.52 | D28: Personal Check | E28: 1 | F28: 1955 | G28: N | H28: 2024-10-24 | I28: 2024-11-04T15:03:13 | J28: 2024-11-04T15:03:13 | K28: 1 | L28: None. Donation by check.
A29: 61386 | B29: EF57-000028 | C29: 58 | D29: Personal Check | E29: 12 | G29: N | H29: 2024-10-28 | I29: 2024-11-18T19:16:38 | J29: 2024-11-18T19:16:38 | K29: 1 | L29: None. Donation by check.
A30: 61387 | B30: EF57-000029 | C30: 1000 | D30: Personal Check | E30: 1 | F30: 1968 | G30: N | H30: 2024-12-04 | I30: 2024-12-29T18:20:24 | J30: 2024-12-29T18:20:24 | K30: 1 | L30: None. Donation by check.
A31: 61389 | B31: EF57-000030 | C31: 1000 | D31: Personal Check | E31: 1 | F31: 1967 | G31: N | H31: 2025-02-06 | I31: 2025-02-17T15:25:27 | J31: 2025-02-17T15:25:27 | K31: 1 | L31: None. Donation by check.
A32: 61390 | B32: EF57-000031 | C32: 250 | D32: Personal Check | E32: 1 | F32: 1968 | G32: N | H32: 2025-01-03 | I32: 2025-02-27T15:42:59 | J32: 2025-02-27T15:42:59 | K32: 1 | L32: None. Donation by check.
A33: 61391 | B33: EF57-000032 | C33: 19.58 | D33: Personal Check | E33: 1 | F33: 1958 | G33: N | H33: 2025-03-14 | I33: 2025-03-20T19:43:09 | J33: 2025-03-20T19:43:09 | K33: 1 | L33: None. Donation by check.
A34: 61392 | B34: EF57-000033 | C34: 40 | D34: PayPal | E34: 1 | F34: 1957 | G34: N | H34: 2024-10-17 | I34: 2025-03-25T00:00:34 | J34: 2025-03-25T00:00:34 | K34: 1 | L34: None. Donation by check.
A35: 61393 | B35: EF57-000034 | C35: 500 | D35: PayPal | E35: 5 | F35: 1959 | G35: N | H35: 2024-10-18 | I35: 2025-03-25T00:04:12 | J35: 2025-03-25T00:04:12 | K35: 1 | L35: None. Donation by check.
A36: 61394 | B36: EF57-000035 | C36: 5 | D36: PayPal | E36: 1 | F36: 1985 | G36: N | H36: 2024-10-19 | I36: 2025-03-25T00:11:21 | J36: 2025-03-25T00:17:09 | K36: 1 | L36: None. Donation by check.
A37: 61395 | B37: EF57-000036 | C37: 500 | D37: PayPal | E37: 1 | F37: 1989 | G37: N | H37: 2024-10-19 | I37: 2025-03-25T00:15:08 | J37: 2025-03-25T00:15:08 | K37: 1 | L37: None. Donation by check.
A38: 61396 | B38: EF57-000037 | C38: 20.09 | D38: PayPal | E38: 3 | F38: 2009 | G38: N | H38: 2024-10-23 | I38: 2025-03-25T00:16:37 | J38: 2025-03-25T00:33:55 | K38: 1 | L38: None. Donation by check.
A39: 61397 | B39: EF57-000038 | C39: 33 | D39: PayPal | E39: 4 | G39: N | H39: 2024-10-25 | I39: 2025-03-25T00:20:20 | J39: 2025-03-25T00:20:20 | K39: 1 | L39: None. Donation by check.
A40: 61398 | B40: EF57-000039 | C40: 10 | D40: PayPal | E40: 1 | F40: 2007 | G40: N | H40: 2024-10-27 | I40: 2025-03-25T00:21:26 | J40: 2025-03-25T00:21:26 | K40: 1 | L40: None. Donation by check.
A41: 61399 | B41: EF57-000040 | C41: 10 | D41: PayPal | E41: 1 | F41: 1986 | G41: N | H41: 2024-10-29 | I41: 2025-03-25T00:22:34 | J41: 2025-03-25T00:22:34 | K41: 1 | L41: None. Donation by check.
A42: 61400 | B42: EF57-000041 | C42: 5 | D42: PayPal | E42: 1 | F42: 1956 | G42: N | H42: 2024-11-03 | I42: 2025-03-25T00:23:36 | J42: 2025-03-25T00:23:36 | K42: 1 | L42: None. Donation by check.
A43: 61401 | B43: EF57-000042 | C43: 58 | D43: PayPal | E43: 1 | F43: 1958 | G43: N | H43: 2024-11-04 | I43: 2025-03-25T00:24:36 | J43: 2025-03-25T00:24:36 | K43: 1 | L43: None. Donation by check.
A44: 61402 | B44: EF57-000043 | C44: 5 | D44: PayPal | E44: 1 | F44: 1978 | G44: N | H44: 2024-11-06 | I44: 2025-03-25T00:25:53 | J44: 2025-03-25T00:25:53 | K44: 1 | L44: None. Donation by check.
A45: 61403 | B45: EF57-000044 | C45: 5 | D45: PayPal | E45: 1 | F45: 1956 | G45: N | H45: 2024-11-09 | I45: 2025-03-25T00:26:56 | J45: 2025-03-25T00:26:56 | K45: 1 | L45: None. Donation by check.
A46: 61404 | B46: EF57-000045 | C46: 1000 | D46: PayPal | E46: 1 | F46: 1976 | G46: N | H46: 2024-11-09 | I46: 2025-03-25T00:28:49 | J46: 2025-03-25T00:28:49 | K46: 1 | L46: None. Donation by check.
A47: 61405 | B47: EF57-000046 | C47: 10 | D47: PayPal | E47: 1 | F47: 1981 | G47: N | H47: 2024-11-11 | I47: 2025-03-25T00:30:03 | J47: 2025-03-25T00:30:03 | K47: 1 | L47: None. Donation by check.
A48: 61406 | B48: EF57-000047 | C48: 10 | D48: PayPal | E48: 1 | F48: 1987 | G48: N | H48: 2024-11-14 | I48: 2025-03-25T00:31:11 | J48: 2025-03-25T00:31:11 | K48: 1 | L48: None. Donation by check.
A49: 61407 | B49: EF57-000048 | C49: 5 | D49: PayPal | E49: 1 | F49: 1985 | G49: N | H49: 2024-11-19 | I49: 2025-03-25T00:32:14 | J49: 2025-03-25T00:32:14 | K49: 1 | L49: None. Donation by check.
A50: 61408 | B50: EF57-000049 | C50: 20.09 | D50: PayPal | E50: 3 | F50: 2009 | G50: N | H50: 2024-11-23 | I50: 2025-03-25T00:33:30 | J50: 2025-03-25T00:33:30 | K50: 1 | L50: None. Donation by check.
A51: 61409 | B51: EF57-000050 | C51: 10 | D51: PayPal | E51: 1 | F51: 2007 | G51: N | H51: 2024-11-27 | I51: 2025-03-25T00:34:52 | J51: 2025-03-25T00:34:52 | K51: 1 | L51: None. Donation by check.
A52: 61410 | B52: EF57-000051 | C52: 10 | D52: PayPal | E52: 1 | F52: 1986 | G52: N | H52: 2024-11-29 | I52: 2025-03-25T00:35:53 | J52: 2025-03-25T00:35:53 | K52: 1 | L52: None. Donation by check.
A53: 61411 | B53: EF57-000052 | C53: 5 | D53: PayPal | E53: 1 | F53: 1956 | G53: N | H53: 2024-12-03 | I53: 2025-03-25T00:39:20 | J53: 2025-03-25T00:39:20 | K53: 1 | L53: None. Donation by check.
A54: 61412 | B54: EF57-000053 | C54: 58 | D54: PayPal | E54: 1 | F54: 1958 | G54: N | H54: 2024-12-04 | I54: 2025-03-25T00:40:07 | J54: 2025-03-25T00:40:07 | K54: 1 | L54: None. Donation by check.
A55: 61413 | B55: EF57-000054 | C55: 5 | D55: PayPal | E55: 1 | F55: 1978 | G55: N | H55: 2024-12-06 | I55: 2025-03-25T00:41:00 | J55: 2025-03-25T00:41:00 | K55: 1 | L55: None. Donation by check.
A56: 61414 | B56: EF57-000055 | C56: 5 | D56: PayPal | E56: 1 | F56: 1956 | G56: N | H56: 2024-12-09 | I56: 2025-03-25T00:41:45 | J56: 2025-03-25T00:41:45 | K56: 1 | L56: None. Donation by check.
A57: 61415 | B57: EF57-000056 | C57: 10 | D57: PayPal | E57: 1 | F57: 1981 | G57: N | H57: 2024-12-11 | I57: 2025-03-25T00:42:38 | J57: 2025-03-25T00:42:38 | K57: 1 | L57: None. Donation by check.
A58: 61416 | B58: EF57-000057 | C58: 10 | D58: PayPal | E58: 1 | F58: 1987 | G58: N | H58: 2024-12-14 | I58: 2025-03-25T00:43:38 | J58: 2025-03-25T00:43:38 | K58: 1 | L58: None. Donation by check.
A59: 61417 | B59: EF57-000058 | C59: 5 | D59: PayPal | E59: 1 | F59: 1985 | G59: N | H59: 2024-12-19 | I59: 2025-03-25T00:44:49 | J59: 2025-03-25T00:44:49 | K59: 1 | L59: None. Donation by check.
A60: 61418 | B60: EF57-000059 | C60: 20.09 | D60: PayPal | E60: 3 | F60: 2009 | G60: N | H60: 2024-12-23 | I60: 2025-03-25T00:45:43 | J60: 2025-03-25T00:45:43 | K60: 1 | L60: None. Donation by check.
A61: 61419 | B61: EF57-000060 | C61: 25 | D61: PayPal | E61: 1 | F61: 1978 | G61: N | H61: 2024-12-26 | I61: 2025-03-25T00:47:30 | J61: 2025-03-25T00:47:30 | K61: 1 | L61: None. Donation by check.
A62: 61420 | B62: EF57-000061 | C62: 10 | D62: PayPal | E62: 1 | F62: 2007 | G62: N | H62: 2024-12-27 | I62: 2025-03-25T00:48:48 | J62: 2025-03-25T00:48:48 | K62: 1 | L62: None. Donation by check.
A63: 61421 | B63: EF57-000062 | C63: 10 | D63: PayPal | E63: 1 | F63: 1986 | G63: N | H63: 2024-12-29 | I63: 2025-03-25T00:49:39 | J63: 2025-03-25T00:49:39 | K63: 1 | L63: None. Donation by check.
A64: 61422 | B64: EF57-000063 | C64: 50 | D64: PayPal | E64: 1 | F64: 1986 | G64: N | H64: 2024-12-31 | I64: 2025-03-25T00:51:20 | J64: 2025-03-25T00:51:20 | K64: 1 | L64: None. Donation by check.
A65: 61423 | B65: EF57-000064 | C65: 5 | D65: PayPal | E65: 1 | F65: 1956 | G65: N | H65: 2025-01-03 | I65: 2025-03-25T00:52:21 | J65: 2025-03-25T00:52:21 | K65: 1 | L65: None. Donation by check.
A66: 61424 | B66: EF57-000065 | C66: 58 | D66: PayPal | E66: 1 | F66: 1958 | G66: N | H66: 2025-01-04 | I66: 2025-03-25T00:53:12 | J66: 2025-03-25T00:53:12 | K66: 1 | L66: None. Donation by check.
A67: 61425 | B67: EF57-000066 | C67: 5 | D67: PayPal | E67: 1 | F67: 1978 | G67: N | H67: 2025-01-06 | I67: 2025-03-25T00:54:00 | J67: 2025-03-25T00:54:00 | K67: 1 | L67: None. Donation by check.
A68: 61426 | B68: EF57-000067 | C68: 5 | D68: PayPal | E68: 1 | F68: 1956 | G68: N | H68: 2025-01-09 | I68: 2025-03-25T01:03:26 | J68: 2025-03-25T01:03:26 | K68: 1 | L68: None. Donation by check.
A69: 61427 | B69: EF57-000068 | C69: 10 | D69: PayPal | E69: 1 | F69: 1981 | G69: N | H69: 2025-01-11 | I69: 2025-03-25T01:04:23 | J69: 2025-03-25T01:04:23 | K69: 1 | L69: None. Donation by check.
A70: 61428 | B70: EF57-000069 | C70: 10 | D70: PayPal | E70: 1 | F70: 1987 | G70: N | H70: 2025-01-14 | I70: 2025-03-25T01:06:46 | J70: 2025-03-25T01:06:46 | K70: 1 | L70: None. Donation by check.
A71: 61429 | B71: EF57-000070 | C71: 5 | D71: PayPal | E71: 1 | F71: 1985 | G71: N | H71: 2025-01-19 | I71: 2025-03-25T01:07:46 | J71: 2025-03-25T01:07:46 | K71: 1 | L71: None. Donation by check.
A72: 61430 | B72: EF57-000071 | C72: 20.09 | D72: PayPal | E72: 3 | F72: 2009 | G72: N | H72: 2025-01-23 | I72: 2025-03-25T01:08:56 | J72: 2025-03-25T01:08:56 | K72: 1 | L72: None. Donation by check.
A73: 61431 | B73: EF57-000072 | C73: 10 | D73: PayPal | E73: 1 | F73: 2007 | G73: N | H73: 2025-01-27 | I73: 2025-03-25T01:19:51 | J73: 2025-03-25T01:19:51 | K73: 1 | L73: None. Donation by check.
A74: 61432 | B74: EF57-000073 | C74: 10 | D74: PayPal | E74: 1 | F74: 1986 | G74: N | H74: 2025-01-29 | I74: 2025-03-25T01:20:47 | J74: 2025-03-25T01:20:47 | K74: 1 | L74: None. Donation by check.
A75: 61433 | B75: EF57-000074 | C75: 5 | D75: PayPal | E75: 1 | F75: 1956 | G75: N | H75: 2025-02-03 | I75: 2025-03-25T01:22:05 | J75: 2025-03-25T01:22:05 | K75: 1 | L75: None. Donation by check.
A76: 61434 | B76: EF57-000075 | C76: 58 | D76: PayPal | E76: 1 | F76: 1958 | G76: N | H76: 2025-02-04 | I76: 2025-03-25T01:23:04 | J76: 2025-03-25T01:23:04 | K76: 1 | L76: None. Donation by check.
A77: 61435 | B77: EF57-000076 | C77: 5 | D77: PayPal | E77: 1 | F77: 1978 | G77: N | H77: 2025-02-06 | I77: 2025-03-25T01:23:55 | J77: 2025-03-25T01:23:55 | K77: 1 | L77: None. Donation by check.
A78: 61436 | B78: EF57-000077 | C78: 5 | D78: PayPal | E78: 1 | F78: 1956 | G78: N | H78: 2025-02-09 | I78: 2025-03-25T01:24:38 | J78: 2025-03-25T01:24:38 | K78: 1 | L78: None. Donation by check.
A79: 61437 | B79: EF57-000078 | C79: 10 | D79: PayPal | E79: 1 | F79: 1981 | G79: N | H79: 2025-02-11 | I79: 2025-03-25T01:25:28 | J79: 2025-03-25T01:25:28 | K79: 1 | L79: None. Donation by check.
A80: 61438 | B80: EF57-000079 | C80: 10 | D80: PayPal | E80: 1 | F80: 1987 | G80: N | H80: 2025-02-14 | I80: 2025-03-25T01:26:15 | J80: 2025-03-25T01:26:15 | K80: 1 | L80: None. Donation by check.
A81: 61439 | B81: EF57-000080 | C81: 5 | D81: PayPal | E81: 1 | F81: 1985 | G81: N | H81: 2025-02-19 | I81: 2025-03-25T01:27:06 | J81: 2025-03-25T01:27:06 | K81: 1 | L81: None. Donation by check.
A82: 61440 | B82: EF57-000081 | C82: 20.09 | D82: PayPal | E82: 3 | F82: 2009 | G82: N | H82: 2025-02-23 | I82: 2025-03-25T01:28:04 | J82: 2025-03-25T01:28:04 | K82: 1 | L82: None. Donation by check.
A83: 61441 | B83: EF57-000082 | C83: 10 | D83: PayPal | E83: 1 | F83: 2007 | G83: N | H83: 2025-02-27 | I83: 2025-03-25T01:30:56 | J83: 2025-03-25T01:30:56 | K83: 1 | L83: None. Donation by check.
A84: 61442 | B84: EF57-000083 | C84: 10 | D84: PayPal | E84: 1 | F84: 1986 | G84: N | H84: 2025-02-28 | I84: 2025-03-25T01:31:45 | J84: 2025-03-25T01:31:45 | K84: 1 | L84: None. Donation by check.
A85: 61443 | B85: EF57-000084 | C85: 5 | D85: PayPal | E85: 1 | F85: 1956 | G85: N | H85: 2025-03-03 | I85: 2025-03-25T01:32:23 | J85: 2025-03-25T01:32:23 | K85: 1 | L85: None. Donation by check.
A86: 61444 | B86: EF57-000085 | C86: 58 | D86: PayPal | E86: 1 | F86: 1958 | G86: N | H86: 2025-03-04 | I86: 2025-03-25T01:33:01 | J86: 2025-03-25T01:33:01 | K86: 1 | L86: None. Donation by check.
A87: 61445 | B87: EF57-000086 | C87: 5 | D87: PayPal | E87: 1 | F87: 1978 | G87: N | H87: 2025-03-06 | I87: 2025-03-25T01:33:40 | J87: 2025-03-25T01:33:40 | K87: 1 | L87: None. Donation by check.
A88: 61446 | B88: EF57-000087 | C88: 5 | D88: Personal Check | E88: 1 | F88: 1956 | G88: N | H88: 2025-03-09 | I88: 2025-03-25T01:34:58 | J88: 2025-03-25T01:34:58 | K88: 1 | L88: None. Donation by check.
A89: 61447 | B89: EF57-000088 | C89: 10 | D89: PayPal | E89: 1 | F89: 1981 | G89: N | H89: 2025-03-11 | I89: 2025-03-25T01:36:06 | J89: 2025-03-25T01:36:06 | K89: 1 | L89: None. Donation by check.
A90: 61448 | B90: EF57-000089 | C90: 10 | D90: PayPal | E90: 1 | F90: 1987 | G90: N | H90: 2025-03-14 | I90: 2025-03-25T01:37:04 | J90: 2025-03-25T01:37:04 | K90: 1 | L90: None. Donation by check.
A91: 61449 | B91: EF57-000090 | C91: 5 | D91: PayPal | E91: 1 | F91: 1985 | G91: N | H91: 2025-03-19 | I91: 2025-03-25T01:38:03 | J91: 2025-03-25T01:38:03 | K91: 1 | L91: None. Donation by check.
A92: 61450 | B92: EF57-000091 | C92: 20.09 | D92: PayPal | E92: 3 | F92: 2009 | G92: N | H92: 2025-03-23 | I92: 2025-03-25T01:38:59 | J92: 2025-03-25T01:38:59 | K92: 1 | L92: None. Donation by check.
A93: 61451 | B93: F57-000003 | C93: 50 | D93: CC | E93: 2 | F93: 2016 | G93: N | H93: 2025-04-07T22:33:16 | I93: 2025-04-07T22:33:18 | J93: 2025-04-07T22:33:18 | K93: 1 | L93: 50
A94: 61452 | B94: F57-000004 | C94: 100 | D94: CC | E94: 1 | F94: 1966 | G94: N | H94: 2025-04-07T22:34:57 | I94: 2025-04-07T22:34:59 | J94: 2025-04-07T22:34:59 | K94: 1 | L94: 100
A95: 61453 | B95: F57-000005 | C95: 100 | D95: CC | E95: 1 | F95: 1964 | G95: N | H95: 2025-04-07T22:38:18 | I95: 2025-04-07T22:38:19 | J95: 2025-04-07T22:38:19 | K95: 1 | L95: 100
A96: 61454 | B96: F57-000006 | C96: 100 | D96: CC | E96: 1 | F96: 1965 | G96: N | H96: 2025-04-07T22:40:29 | I96: 2025-04-07T22:40:30 | J96: 2025-04-07T22:40:30 | K96: 1 | L96: 100
A97: 61455 | B97: F57-000007 | C97: 500 | D97: CC | E97: 1 | F97: 1964 | G97: N | H97: 2025-04-07T22:54:07 | I97: 2025-04-07T22:54:09 | J97: 2025-04-07T22:54:09 | K97: 1 | L97: 500
A98: 61456 | B98: F57-000008 | C98: 100 | D98: CC | E98: 1 | F98: 1958 | G98: N | H98: 2025-04-07T22:59:25 | I98: 2025-04-07T22:59:26 | J98: 2025-04-07T22:59:26 | K98: 1 | L98: 100
A99: 61457 | B99: F57-000009 | C99: 5 | D99: CC | E99: 1 | F99: 1980 | G99: N | H99: 2025-04-07T23:06:00 | I99: 2025-04-07T23:06:01 | J99: 2025-04-07T23:06:01 | K99: 1 | L99: 5
A100: 61458 | B100: F57-000010 | C100: 200 | D100: CC | E100: 1 | F100: 1964 | G100: N | H100: 2025-04-07T23:25:58 | I100: 2025-04-07T23:26:00 | J100: 2025-04-07T23:26:00 | K100: 1 | L100: 200
A101: 61459 | B101: F57-000011 | C101: 50 | D101: CC | E101: 1 | F101: 1956 | G101: N | H101: 2025-04-07T23:52:18 | I101: 2025-04-07T23:52:20 | J101: 2025-04-07T23:52:20 | K101: 1 | L101: 50
A102: 61460 | B102: F57-000012 | C102: 100 | D102: CC | E102: 1 | F102: 1968 | G102: N | H102: 2025-04-08T01:18:49 | I102: 2025-04-08T01:18:50 | J102: 2025-04-08T01:18:50 | K102: 1 | L102: 100
A103: 61461 | B103: F57-000013 | C103: 100 | D103: CC | E103: 1 | F103: 1996 | G103: N | H103: 2025-04-08T01:59:01 | I103: 2025-04-08T01:59:03 | J103: 2025-04-08T01:59:03 | K103: 1 | L103: 100
A104: 61462 | B104: F57-000014 | C104: 50 | D104: CC | E104: 1 | F104: 1968 | G104: N | H104: 2025-04-08T03:29:04 | I104: 2025-04-08T03:29:05 | J104: 2025-04-08T03:29:05 | K104: 1 | L104: 50
A105: 61463 | B105: F57-000015 | C105: 100 | D105: CC | E105: 1 | F105: 1973 | G105: N | H105: 2025-04-08T03:32:34 | I105: 2025-04-08T03:32:35 | J105: 2025-04-08T03:32:35 | K105: 1 | L105: 100
A106: 61464 | B106: F57-000016 | C106: 100 | D106: CC | E106: 1 | F106: 1977 | G106: N | H106: 2025-04-08T03:37:46 | I106: 2025-04-08T03:37:47 | J106: 2025-04-08T03:37:47 | K106: 1 | L106: 100
A107: 61465 | B107: F57-000017 | C107: 10 | D107: CC | E107: 1 | F107: 1987 | G107: N | H107: 2025-04-08T04:19:00 | I107: 2025-04-08T04:19:01 | J107: 2025-04-08T04:19:01 | K107: 1 | L107: 10
A108: 61466 | B108: F57-000018 | C108: 50 | D108: CC | E108: 1 | F108: 1980 | G108: N | H108: 2025-04-08T04:36:26 | I108: 2025-04-08T04:36:27 | J108: 2025-04-08T04:36:27 | K108: 1 | L108: 50
A109: 61467 | B109: F57-000019 | C109: 19.63 | D109: CC | E109: 1 | F109: 1963 | G109: N | H109: 2025-04-08T04:43:22 | I109: 2025-04-08T04:43:23 | J109: 2025-04-08T04:43:23 | K109: 1 | L109: 19.63
A110: 61468 | B110: F57-000020 | C110: 50 | D110: CC | E110: 1 | F110: 1975 | G110: N | H110: 2025-04-08T05:14:42 | I110: 2025-04-08T05:14:44 | J110: 2025-04-08T05:14:44 | K110: 1 | L110: 50
A111: 61469 | B111: F57-000021 | C111: 19.8 | D111: CC | E111: 1 | F111: 1980 | G111: N | H111: 2025-04-08T05:18:23 | I111: 2025-04-08T05:18:24 | J111: 2025-04-08T05:18:24 | K111: 1 | L111: 19.8
A112: 61470 | B112: F57-000022 | C112: 50 | D112: CC | E112: 1 | F112: 1969 | G112: N | H112: 2025-04-08T05:32:05 | I112: 2025-04-08T05:32:06 | J112: 2025-04-08T05:32:06 | K112: 1 | L112: 50
A113: 61471 | B113: F57-000023 | C113: 64 | D113: CC | E113: 6 | F113: 1964 | G113: N | H113: 2025-04-08T05:35:48 | I113: 2025-04-08T05:35:50 | J113: 2025-04-08T05:35:50 | K113: 1 | L113: 64
A114: 61472 | B114: F57-000024 | C114: 50 | D114: CC | E114: 1 | F114: 1977 | G114: N | H114: 2025-04-08T05:45:48 | I114: 2025-04-08T05:45:50 | J114: 2025-04-08T05:45:50 | K114: 1 | L114: 50
A115: 61473 | B115: F57-000025 | C115: 25 | D115: CC | E115: 1 | F115: 1975 | G115: N | H115: 2025-04-08T05:45:53 | I115: 2025-04-08T05:45:54 | J115: 2025-04-08T05:45:54 | K115: 1 | L115: 25
A116: 61474 | B116: F57-000026 | C116: 100 | D116: CC | E116: 1 | F116: 1969 | G116: N | H116: 2025-04-08T05:55:55 | I116: 2025-04-08T05:55:57 | J116: 2025-04-08T05:55:57 | K116: 1 | L116: 100
A117: 61475 | B117: F57-000027 | C117: 50 | D117: CC | E117: 1 | F117: 1968 | G117: N | H117: 2025-04-08T06:08:12 | I117: 2025-04-08T06:08:13 | J117: 2025-04-08T06:08:13 | K117: 1 | L117: 50
A118: 61476 | B118: F57-000028 | C118: 25 | D118: CC | E118: 1 | F118: 1966 | G118: N | H118: 2025-04-08T06:10:38 | I118: 2025-04-08T06:10:40 | J118: 2025-04-08T06:10:40 | K118: 1 | L118: 25
A119: 61477 | B119: F57-000029 | C119: 40 | D119: CC | E119: 1 | F119: 1996 | G119: N | H119: 2025-04-08T06:11:05 | I119: 2025-04-08T06:11:06 | J119: 2025-04-08T06:11:06 | K119: 1 | L119: 40
A120: 61478 | B120: F57-000030 | C120: 10 | D120: CC | E120: 1 | F120: 1978 | G120: N | H120: 2025-04-08T06:18:52 | I120: 2025-04-08T06:18:53 | J120: 2025-04-08T06:18:53 | K120: 1 | L120: 10
A121: 61479 | B121: F57-000031 | C121: 150 | D121: CC | E121: 1 | F121: 1989 | G121: N | H121: 2025-04-08T06:41:45 | I121: 2025-04-08T06:41:46 | J121: 2025-04-08T06:41:46 | K121: 1 | L121: 150
A122: 61480 | B122: F57-000032 | C122: 69.69 | D122: CC | E122: 1 | F122: 1969 | G122: N | H122: 2025-04-08T06:42:20 | I122: 2025-04-08T06:42:21 | J122: 2025-04-08T06:42:21 | K122: 1 | L122: 69.69
A123: 61481 | B123: F57-000033 | C123: 60 | D123: CC | E123: 1 | F123: 1986 | G123: N | H123: 2025-04-08T06:45:14 | I123: 2025-04-08T06:45:16 | J123: 2025-04-08T06:45:16 | K123: 1 | L123: 60
A124: 61482 | B124: F57-000034 | C124: 100 | D124: CC | E124: 1 | F124: 1958 | G124: N | H124: 2025-04-08T06:52:25 | I124: 2025-04-08T06:52:27 | J124: 2025-04-08T06:52:27 | K124: 1 | L124: 100
A125: 61483 | B125: F57-000035 | C125: 50 | D125: CC | E125: 1 | F125: 1960 | G125: N | H125: 2025-04-08T07:08:31 | I125: 2025-04-08T07:08:32 | J125: 2025-04-08T07:08:32 | K125: 1 | L125: 50
A126: 61484 | B126: F57-000036 | C126: 19.79 | D126: CC | E126: 1 | F126: 1979 | G126: N | H126: 2025-04-08T07:09:06 | I126: 2025-04-08T07:09:07 | J126: 2025-04-08T07:09:07 | K126: 1 | L126: 19.79
A127: 61485 | B127: F57-000037 | C127: 100 | D127: CC | E127: 1 | F127: 1972 | G127: N | H127: 2025-04-08T07:09:52 | I127: 2025-04-08T07:09:53 | J127: 2025-04-08T07:09:53 | K127: 1 | L127: 100
A128: 61486 | B128: F57-000038 | C128: 25 | D128: CC | E128: 1 | F128: 1977 | G128: N | H128: 2025-04-08T07:23:26 | I128: 2025-04-08T07:23:27 | J128: 2025-04-08T07:23:27 | K128: 1 | L128: 25
A129: 61487 | B129: F57-000039 | C129: 40 | D129: CC | E129: 2 | F129: 2008 | G129: N | H129: 2025-04-08T07:23:29 | I129: 2025-04-08T07:23:30 | J129: 2025-04-08T07:23:30 | K129: 1 | L129: 40
A130: 61488 | B130: F57-000040 | C130: 19.79 | D130: CC | E130: 1 | F130: 1979 | G130: N | H130: 2025-04-08T07:26:21 | I130: 2025-04-08T07:26:22 | J130: 2025-04-08T07:26:22 | K130: 1 | L130: 19.79
A131: 61489 | B131: F57-000041 | C131: 79 | D131: CC | E131: 1 | F131: 1979 | G131: N | H131: 2025-04-08T07:30:22 | I131: 2025-04-08T07:30:23 | J131: 2025-04-08T07:30:23 | K131: 1 | L131: 79
A132: 61490 | B132: F57-000042 | C132: 19.79 | D132: CC | E132: 1 | F132: 1979 | G132: N | H132: 2025-04-08T07:33:00 | I132: 2025-04-08T07:33:02 | J132: 2025-04-08T07:33:02 | K132: 1 | L132: 19.79
A133: 61491 | B133: F57-000043 | C133: 100 | D133: CC | F133: 1979 | G133: N | H133: 2025-04-08T07:33:30 | I133: 2025-04-08T07:33:32 | J133: 2025-04-08T07:33:32 | K133: 1 | L133: 100
A134: 61492 | B134: F57-000044 | C134: 9.64 | D134: CC | E134: 1 | F134: 1964 | G134: N | H134: 2025-04-08T07:37:57 | I134: 2025-04-08T07:37:58 | J134: 2025-04-08T07:37:58 | K134: 1 | L134: 9.64
A135: 61493 | B135: F57-000045 | C135: 100 | D135: CC | E135: 1 | F135: 1979 | G135: N | H135: 2025-04-08T07:40:45 | I135: 2025-04-08T07:40:46 | J135: 2025-04-08T07:40:46 | K135: 1 | L135: 100
A136: 61494 | B136: F57-000046 | C136: 64 | D136: CC | E136: 5 | F136: 1964 | G136: N | H136: 2025-04-08T07:44:39 | I136: 2025-04-08T07:44:41 | J136: 2025-04-08T07:44:41 | K136: 1 | L136: 64
A137: 61495 | B137: F57-000047 | C137: 50 | D137: CC | E137: 1 | F137: 1963 | G137: N | H137: 2025-04-08T07:49:16 | I137: 2025-04-08T07:49:17 | J137: 2025-04-08T07:49:17 | K137: 1 | L137: 50
A138: 61496 | B138: F57-000048 | C138: 200 | D138: CC | E138: 1 | F138: 1982 | G138: N | H138: 2025-04-08T07:49:45 | I138: 2025-04-08T07:49:46 | J138: 2025-04-08T07:49:46 | K138: 1 | L138: 200
A139: 61497 | B139: F57-000049 | C139: 50 | D139: CC | E139: 1 | F139: 1978 | G139: N | H139: 2025-04-08T07:55:38 | I139: 2025-04-08T07:55:39 | J139: 2025-04-08T07:55:39 | K139: 1 | L139: 50
A140: 61498 | B140: F57-000050 | C140: 64 | D140: CC | E140: 1 | F140: 1964 | G140: N | H140: 2025-04-08T07:57:41 | I140: 2025-04-08T07:57:42 | J140: 2025-04-08T07:57:42 | K140: 1 | L140: 64
A141: 61499 | B141: F57-000051 | C141: 25 | D141: CC | E141: 1 | F141: 1977 | G141: N | H141: 2025-04-08T08:01:07 | I141: 2025-04-08T08:01:09 | J141: 2025-04-08T08:01:09 | K141: 1 | L141: 25
A142: 61500 | B142: F57-000052 | C142: 57 | D142: CC | E142: 1 | F142: 1957 | G142: N | H142: 2025-04-08T08:12:24 | I142: 2025-04-08T08:12:25 | J142: 2025-04-08T08:12:25 | K142: 1 | L142: 57
A143: 61501 | B143: F57-000053 | C143: 19.79 | D143: CC | E143: 1 | F143: 1979 | G143: N | H143: 2025-04-08T08:19:12 | I143: 2025-04-08T08:19:13 | J143: 2025-04-08T08:19:13 | K143: 1 | L143: 19.79
A144: 61502 | B144: F57-000054 | C144: 50 | D144: CC | E144: 1 | F144: 1978 | G144: N | H144: 2025-04-08T08:19:30 | I144: 2025-04-08T08:19:31 | J144: 2025-04-08T08:19:31 | K144: 1 | L144: 50
A145: 61503 | B145: F57-000055 | C145: 100 | D145: CC | E145: 1 | F145: 1968 | G145: N | H145: 2025-04-08T08:23:27 | I145: 2025-04-08T08:23:29 | J145: 2025-04-08T08:23:29 | K145: 1 | L145: 100
A146: 61504 | B146: F57-000056 | C146: 19.79 | D146: CC | E146: 1 | F146: 1979 | G146: N | H146: 2025-04-08T08:32:01 | I146: 2025-04-08T08:32:03 | J146: 2025-04-08T08:32:03 | K146: 1 | L146: 19.79
A147: 61505 | B147: F57-000057 | C147: 78 | D147: CC | E147: 1 | F147: 1978 | G147: N | H147: 2025-04-08T08:32:21 | I147: 2025-04-08T08:32:22 | J147: 2025-04-08T08:32:22 | K147: 1 | L147: 78
A148: 61506 | B148: F57-000058 | C148: 150 | D148: CC | E148: 1 | F148: 1989 | G148: N | H148: 2025-04-08T08:43:11 | I148: 2025-04-08T08:43:12 | J148: 2025-04-08T08:43:12 | K148: 1 | L148: 150
A149: 61507 | B149: F57-000060 | C149: 19.79 | D149: CC | E149: 6 | F149: 1979 | G149: N | H149: 2025-04-08T08:46:13 | I149: 2025-04-08T08:46:14 | J149: 2025-04-08T08:46:14 | K149: 1 | L149: 19.79
A150: 61508 | B150: F57-000059 | C150: 100 | D150: CC | E150: 1 | F150: 1975 | G150: N | H150: 2025-04-08T08:46:13 | I150: 2025-04-08T08:46:14 | J150: 2025-04-08T08:46:14 | K150: 1 | L150: 100
A151: 61509 | B151: F57-000061 | C151: 75 | D151: CC | E151: 1 | F151: 1966 | G151: N | H151: 2025-04-08T08:58:18 | I151: 2025-04-08T08:58:20 | J151: 2025-04-08T08:58:20 | K151: 1 | L151: 75
A152: 61510 | B152: F57-000062 | C152: 200 | D152: CC | E152: 1 | F152: 1979 | G152: N | H152: 2025-04-08T09:00:35 | I152: 2025-04-08T09:00:36 | J152: 2025-04-08T09:00:36 | K152: 1 | L152: 200
A153: 61511 | B153: F57-000063 | C153: 25 | D153: CC | E153: 1 | F153: 1969 | G153: N | H153: 2025-04-08T09:00:41 | I153: 2025-04-08T09:00:43 | J153: 2025-04-08T09:00:43 | K153: 1 | L153: 25
A154: 61512 | B154: F57-000064 | C154: 75 | D154: CC | E154: 1 | F154: 1960 | G154: N | H154: 2025-04-08T09:06:16 | I154: 2025-04-08T09:06:18 | J154: 2025-04-08T09:06:18 | K154: 1 | L154: 75
A155: 61513 | B155: F57-000065 | C155: 50 | D155: CC | E155: 1 | F155: 1966 | G155: N | H155: 2025-04-08T09:11:39 | I155: 2025-04-08T09:11:40 | J155: 2025-04-08T09:11:40 | K155: 1 | L155: 50
A156: 61514 | B156: F57-000066 | C156: 19.79 | D156: CC | E156: 1 | F156: 1979 | G156: N | H156: 2025-04-08T09:15:06 | I156: 2025-04-08T09:15:07 | J156: 2025-04-08T09:15:07 | K156: 1 | L156: 19.79
A157: 61515 | B157: F57-000067 | C157: 25 | D157: CC | E157: 1 | F157: 1979 | G157: N | H157: 2025-04-08T09:16:27 | I157: 2025-04-08T09:16:29 | J157: 2025-04-08T09:16:29 | K157: 1 | L157: 25
A158: 61516 | B158: F57-000068 | C158: 19.79 | D158: CC | E158: 1 | F158: 1979 | G158: N | H158: 2025-04-08T09:20:03 | I158: 2025-04-08T09:20:04 | J158: 2025-04-08T09:20:04 | K158: 1 | L158: 19.79
A159: 61517 | B159: F57-000069 | C159: 50 | D159: CC | E159: 1 | F159: 1978 | G159: N | H159: 2025-04-08T09:20:59 | I159: 2025-04-08T09:21:01 | J159: 2025-04-08T09:21:01 | K159: 1 | L159: 50
A160: 61518 | B160: F57-000070 | C160: 50 | D160: CC | E160: 1 | F160: 1959 | G160: N | H160: 2025-04-08T09:29:10 | I160: 2025-04-08T09:29:12 | J160: 2025-04-08T09:29:12 | K160: 1 | L160: 50
A161: 61519 | B161: F57-000071 | C161: 69 | D161: CC | E161: 1 | F161: 1969 | G161: N | H161: 2025-04-08T09:32:22 | I161: 2025-04-08T09:32:24 | J161: 2025-04-08T09:32:24 | K161: 1 | L161: 69
A162: 61520 | B162: F57-000072 | C162: 25 | D162: CC | E162: 1 | F162: 1963 | G162: N | H162: 2025-04-08T09:52:05 | I162: 2025-04-08T09:52:07 | J162: 2025-04-08T09:52:07 | K162: 1 | L162: 25
A163: 61521 | B163: F57-000073 | C163: 100 | D163: CC | E163: 6 | F163: 1979 | G163: N | H163: 2025-04-08T09:58:09 | I163: 2025-04-08T09:58:11 | J163: 2025-04-08T09:58:11 | K163: 1 | L163: 100
A164: 61522 | B164: F57-000074 | C164: 35 | D164: CC | E164: 1 | F164: 1969 | G164: N | H164: 2025-04-08T10:12:27 | I164: 2025-04-08T10:12:28 | J164: 2025-04-08T10:12:28 | K164: 1 | L164: 35
A165: 61523 | B165: F57-000075 | C165: 50 | D165: CC | E165: 1 | F165: 1964 | G165: N | H165: 2025-04-08T10:13:10 | I165: 2025-04-08T10:13:11 | J165: 2025-04-08T10:13:11 | K165: 1 | L165: 50
A166: 61524 | B166: F57-000076 | C166: 1000 | D166: CC | E166: 1 | F166: 1966 | G166: N | H166: 2025-04-08T10:16:48 | I166: 2025-04-08T10:16:49 | J166: 2025-04-08T10:16:49 | K166: 1 | L166: 1000
A167: 61525 | B167: F57-000077 | C167: 25 | D167: CC | E167: 2 | F167: 2011 | G167: N | H167: 2025-04-08T10:25:08 | I167: 2025-04-08T10:25:09 | J167: 2025-04-08T10:25:09 | K167: 1 | L167: 25
A168: 61526 | B168: F57-000078 | C168: 300 | D168: CC | E168: 1 | F168: 1966 | G168: N | H168: 2025-04-08T10:30:35 | I168: 2025-04-08T10:30:36 | J168: 2025-04-08T10:30:36 | K168: 1 | L168: 300
A169: 61527 | B169: F57-000079 | C169: 50 | D169: CC | E169: 1 | F169: 1969 | G169: N | H169: 2025-04-08T10:41:45 | I169: 2025-04-08T10:41:46 | J169: 2025-04-08T10:41:46 | K169: 1 | L169: 50
A170: 61528 | B170: F57-000080 | C170: 50 | D170: CC | E170: 1 | F170: 1966 | G170: N | H170: 2025-04-08T10:42:43 | I170: 2025-04-08T10:42:44 | J170: 2025-04-08T10:42:44 | K170: 1 | L170: 50
A171: 61529 | B171: F57-000081 | C171: 100 | D171: CC | E171: 1 | F171: 1968 | G171: N | H171: 2025-04-08T10:44:26 | I171: 2025-04-08T10:44:27 | J171: 2025-04-08T10:44:27 | K171: 1 | L171: 100
A172: 61530 | B172: F57-000082 | C172: 79 | D172: CC | E172: 1 | F172: 1979 | G172: N | H172: 2025-04-08T10:47:00 | I172: 2025-04-08T10:47:01 | J172: 2025-04-08T10:47:01 | K172: 1 | L172: 79
A173: 61531 | B173: F57-000083 | C173: 50 | D173: CC | E173: 1 | F173: 1966 | G173: N | H173: 2025-04-08T10:51:12 | I173: 2025-04-08T10:51:13 | J173: 2025-04-08T10:51:13 | K173: 1 | L173: 50
A174: 61532 | B174: F57-000084 | C174: 100 | D174: CC | E174: 1 | F174: 1966 | G174: N | H174: 2025-04-08T10:52:39 | I174: 2025-04-08T10:52:41 | J174: 2025-04-08T10:52:41 | K174: 1 | L174: 100
A175: 61533 | B175: F57-000085 | C175: 50 | D175: CC | F175: 1960 | G175: N | H175: 2025-04-08T10:56:27 | I175: 2025-04-08T10:56:28 | J175: 2025-04-08T10:56:28 | K175: 1 | L175: 50
A176: 61534 | B176: F57-000086 | C176: 25 | D176: CC | E176: 1 | F176: 1969 | G176: N | H176: 2025-04-08T10:57:26 | I176: 2025-04-08T10:57:27 | J176: 2025-04-08T10:57:27 | K176: 1 | L176: 25
A177: 61535 | B177: F57-000087 | C177: 50 | D177: CC | E177: 1 | F177: 1966 | G177: N | H177: 2025-04-08T11:04:08 | I177: 2025-04-08T11:04:10 | J177: 2025-04-08T11:04:10 | K177: 1 | L177: 50
A178: 61536 | B178: F57-000088 | C178: 50 | D178: CC | E178: 1 | F178: 1959 | G178: N | H178: 2025-04-08T11:04:25 | I178: 2025-04-08T11:04:27 | J178: 2025-04-08T11:04:27 | K178: 1 | L178: 50
A179: 61537 | B179: F57-000089 | C179: 100 | D179: CC | E179: 1 | F179: 1965 | G179: N | H179: 2025-04-08T11:05:51 | I179: 2025-04-08T11:05:53 | J179: 2025-04-08T11:05:53 | K179: 1 | L179: 100
A180: 61538 | B180: F57-000090 | C180: 79.79 | D180: CC | E180: 1 | F180: 1979 | G180: N | H180: 2025-04-08T11:11:52 | I180: 2025-04-08T11:11:54 | J180: 2025-04-08T11:11:54 | K180: 1 | L180: 79.79
A181: 61539 | B181: F57-000091 | C181: 19.79 | D181: CC | E181: 1 | F181: 1979 | G181: N | H181: 2025-04-08T11:12:26 | I181: 2025-04-08T11:12:27 | J181: 2025-04-08T11:12:27 | K181: 1 | L181: 19.79
A182: 61540 | B182: F57-000092 | C182: 198.9 | D182: CC | E182: 1 | F182: 1989 | G182: N | H182: 2025-04-08T11:13:38 | I182: 2025-04-08T11:13:40 | J182: 2025-04-08T11:13:40 | K182: 1 | L182: 198.9
A183: 61541 | B183: F57-000093 | C183: 100 | D183: CC | E183: 1 | F183: 1972 | G183: N | H183: 2025-04-08T11:15:55 | I183: 2025-04-08T11:15:56 | J183: 2025-04-08T11:15:56 | K183: 1 | L183: 100
A184: 61542 | B184: F57-000094 | C184: 100 | D184: CC | E184: 1 | F184: 1969 | G184: N | H184: 2025-04-08T11:17:47 | I184: 2025-04-08T11:17:48 | J184: 2025-04-08T11:17:48 | K184: 1 | L184: 100
A185: 61543 | B185: F57-000095 | C185: 25 | D185: CC | E185: 6 | F185: 1966 | G185: N | H185: 2025-04-08T11:48:03 | I185: 2025-04-08T11:48:05 | J185: 2025-04-08T11:48:05 | K185: 1 | L185: 25
A186: 61544 | B186: F57-000096 | C186: 50 | D186: CC | E186: 1 | F186: 1966 | G186: N | H186: 2025-04-08T11:53:29 | I186: 2025-04-08T11:53:30 | J186: 2025-04-08T11:53:30 | K186: 1 | L186: 50
A187: 61545 | B187: F57-000097 | C187: 250 | D187: CC | E187: 1 | F187: 1977 | G187: N | H187: 2025-04-08T11:54:04 | I187: 2025-04-08T11:54:06 | J187: 2025-04-08T11:54:06 | K187: 1 | L187: 250
A188: 61546 | B188: F57-000098 | C188: 50 | D188: CC | E188: 1 | F188: 1977 | G188: N | H188: 2025-04-08T12:14:12 | I188: 2025-04-08T12:14:13 | J188: 2025-04-08T12:14:13 | K188: 1 | L188: 50
A189: 61547 | B189: F57-000099 | C189: 500 | D189: CC | E189: 2 | F189: 2021 | G189: N | H189: 2025-04-08T12:14:28 | I189: 2025-04-08T12:14:29 | J189: 2025-04-08T12:14:29 | K189: 1 | L189: 500
A190: 61548 | B190: F57-000100 | C190: 55 | D190: CC | E190: 1 | F190: 1955 | G190: N | H190: 2025-04-08T12:40:41 | I190: 2025-04-08T12:40:42 | J190: 2025-04-08T12:40:42 | K190: 1 | L190: 55
A191: 61549 | B191: F57-000101 | C191: 64 | D191: CC | E191: 1 | F191: 1964 | G191: N | H191: 2025-04-08T12:54:11 | I191: 2025-04-08T12:54:12 | J191: 2025-04-08T12:54:12 | K191: 1 | L191: 64
A192: 61550 | B192: F57-000102 | C192: 100 | D192: CC | E192: 1 | F192: 1966 | G192: N | H192: 2025-04-08T12:57:41 | I192: 2025-04-08T12:57:42 | J192: 2025-04-08T12:57:42 | K192: 1 | L192: 100
A193: 61551 | B193: F57-000103 | C193: 75 | D193: CC | E193: 1 | F193: 1966 | G193: N | H193: 2025-04-08T13:00:09 | I193: 2025-04-08T13:00:11 | J193: 2025-04-08T13:00:11 | K193: 1 | L193: 75
A194: 61552 | B194: F57-000104 | C194: 50 | D194: CC | E194: 1 | F194: 1956 | G194: N | H194: 2025-04-08T13:25:37 | I194: 2025-04-08T13:25:38 | J194: 2025-04-08T13:25:38 | K194: 1 | L194: 50
A195: 61553 | B195: F57-000105 | C195: 25 | D195: CC | E195: 1 | F195: 1979 | G195: N | H195: 2025-04-08T13:38:58 | I195: 2025-04-08T13:38:59 | J195: 2025-04-08T13:38:59 | K195: 1 | L195: 25
A196: 61554 | B196: F57-000106 | C196: 64 | D196: CC | E196: 1 | F196: 1964 | G196: N | H196: 2025-04-08T13:49:57 | I196: 2025-04-08T13:49:59 | J196: 2025-04-08T13:49:59 | K196: 1 | L196: 64
A197: 61555 | B197: F57-000107 | C197: 25 | D197: CC | E197: 1 | F197: 1965 | G197: N | H197: 2025-04-08T13:53:45 | I197: 2025-04-08T13:53:46 | J197: 2025-04-08T13:53:46 | K197: 1 | L197: 25
A198: 61556 | B198: F57-000108 | C198: 50 | D198: CC | E198: 1 | F198: 1978 | G198: N | H198: 2025-04-08T13:55:33 | I198: 2025-04-08T13:55:34 | J198: 2025-04-08T13:55:34 | K198: 1 | L198: 50
A199: 61557 | B199: F57-000109 | C199: 100 | D199: CC | E199: 1 | F199: 1966 | G199: N | H199: 2025-04-08T14:10:34 | I199: 2025-04-08T14:10:35 | J199: 2025-04-08T14:10:35 | K199: 1 | L199: 100
A200: 61558 | B200: F57-000110 | C200: 100 | D200: CC | E200: 1 | F200: 1966 | G200: N | H200: 2025-04-08T14:11:35 | I200: 2025-04-08T14:11:37 | J200: 2025-04-08T14:11:37 | K200: 1 | L200: 100
... 297 more rows

Sheet Sheet11 (hidden)
A1: 1
A2: 2
A3: 3
A4: 4
A5: 5
A6: 6
A7: 7
A8: 8
A9: 9
A10: 10
A11: 11
A12: 12
A13: 13
A14: 14
A15: 15
A16: 16
A17: 17
A18: 18
A19: 19
A20: 20
A21: 21
A22: 22
A23: 23
A24: 24
A25: 25
A26: 26
A27: 27
A28: 28
A29: 29
A30: 30
A31: 31
A32: 32
A33: 33
A34: 34
A35: 35
A36: 36
A37: 37
A38: 38
A39: 39
A40: 40
A41: 41
A42: 42
A43: 43
A44: 44
A45: 45
A46: 46
A47: 47
A48: 48
A49: 49
A50: 50
A51: 51
A52: 52
A53: 53
A54: 54
A55: 55
A56: 56
A57: 57
A58: 58
A59: 59
A60: 60
A61: 61
A62: 62
